Workbook

Sheet Startseite
A2: Berechnung der Sanierungsdauer | L2: Excel-Version | M2: =INFO("version") -> 16.0
A3: Mikrobiologische Sanierung durch Airsparging
A5: Version 1.1

Sheet Bodencharakterisierung (hidden)
A2: Parameter | C2: Einheit | D2: Hauptbodenart | E2: Nebenbodenart
D3: Grobsand | E3: Feinsand
A4: Relativer Anteil (geschätzt) | C4: % | D4: 70 | E4: =100-D4 -> 30 | I4: =N4 -> Grobsand | L4: Parameter | M4: Einheit | N4: Grobsand | O4: Mittelsand | P4: Feinsand | Q4: Schluff | R4: Ton
A5: Wassersättigung (ungesättigter Boden) | B5: SW | C5: - | D5: 0.26 | E5: 0.26 | I5: =O4 -> Mittelsand | L5: Wassersättigung (ungesättigter Boden) | M5: - | N5: 0.26 | O5: 0.26 | P5: 0.26 | Q5: 0.27 | R5: 0.29
A6: Durchlässigkeitsbeiwert | B6: kf | C6: m/s | D6: 0.0002 | E6: 1e-05 | G6: =E6/D6 -> 0.05 | I6: =P4 -> Feinsand | L6: Durchlässigkeitsbeiwert (kf) | M6: m/s | N6: 0.0002 | O6: 0.000275 | P6: 1e-05 | Q6: 1e-07 | R6: 1e-11
A7: Nutzbare Porosität | B7: neff | C7: - | D7: 0.2 | E7: 0.1 | I7: =Q4 -> Schluff | J7: Injizierbarkeit von Schluffböden ist nicht gegeben - injizierte Lösung verteilt sich nicht gleichmäßig und Desorption läuft nur viel langsamer ab. | L7: Nutzbare Porosität (neff) | M7: - | N7: 0.2 | O7: 0.125 | P7: 0.1 | Q7: 0.075 | R7: 0.035
A8: Gesamtporosität (Hohlraumvolumen) | B8: n | C8: - | D8: 0.33 | E8: 0.33 | I8: =R4 -> Ton | J8: Injizierbarkeit von Tonböden ist nicht gegeben - injizierte Lösung verteilt sich nicht gleichmäßig und Desorption läuft nur viel langsamer ab. | L8: Gesamtporosität (Hohlraumvolumen) | M8: - | N8: 0.33 | O8: 0.33 | P8: 0.33 | Q8: 0.34 | R8: 0.35
A9: Organischer Kohlenstoffgehalt | B9: fOC | C9: - | D9: 0.01 | E9: 0.01 | L9: Organische Kohlenstoffgehalt | M9: - | N9: 0.01 | O9: 0.01 | P9: 0.01 | Q9: 0.01 | R9: 0.01
A10: Korndichte | B10: ρs | C10: kg/m³ | D10: 2650 | E10: 2650 | L10: Korndichte | M10: kg/m³ | N10: 2650 | O10: 2650 | P10: 2650 | Q10: 2690 | R10: 2700
A11: Lagerungsdichte | B11: d | C11: kg/L | D11: 1.515 | E11: 1.515 | L11: Schüttdichte | M11: kg/dm³ | N11: 1.515 | O11: 1.515 | P11: 1.515 | Q11: 1.43 | R11: 1.64
A12: Anteil (Bodenkorn) | B12: nM | C12: kg/m³ | D12: 1015.05 | E12: 1015.05 | L12: Anteil (Bodenkorn) | M12: kg/m³ | N12: =1000*(1-N8)*N11 -> 1015.05 | O12: =1000*(1-O8)*O11 -> 1015.05 | P12: =1000*(1-P8)*P11 -> 1015.05 | Q12: =1000*(1-Q8)*Q11 -> 943.8 | R12: =1000*(1-R8)*R11 -> 1066
A13: Mittlerer Kornradius | B13: d50 | C13: m | D13: 0.001315 | E13: 0.0001315 | L13: Mittlerer Kornradius (d50) | M13: m | N13: 0.001315 | O13: 0.000415 | P13: 0.0001315 | Q13: 3.25e-05 | R13: 2e-06
A14: Tortouistät in der Wasserphase | B14: τw | C14: - | D14: 5 | E14: 10 | L14: Tortuoistät in der Wasserphase (τw) | M14: - | N14: =1/N7 -> 5 | O14: =1/O7 -> 8 | P14: =1/P7 -> 10 | Q14: =1/Q7 -> 13.33333333 | R14: =1/R7 -> 28.57142857
A15: Wärmeleitfähigkeit | B15: λ | C15: W/(m·K) | D15: 3.72 | E15: 2.75 | L15: Wärmeleitfähigkeit (λ) | M15: W/(m·K) | N15: 3.72 | O15: 3.34 | P15: 2.75 | Q15: 1.5 | R15: 1.5
A16: Temperaturleitfähigkeit | B16: α | C16: m²/s | D16: 0.001488 | E16: 0.0011 | L16: Temperaturleitfähigkeit (α) | M16: m²/s | N16: =N15/N18 -> 0.001488 | O16: =O15/O18 -> 0.001336 | P16: =P15/P18 -> 0.0011 | Q16: =Q15/Q18 -> 0.000625 | R16: =R15/R18 -> 0.000625
A17: Untergrundtemperatur | B17: T0 | C17: K | D17: 283.15 | E17: 283.15 | L17: Untergrundtemperatur (T0) | M17: K | N17: 283.15 | O17: 283.15 | P17: 283.15 | Q17: 283.15 | R17: 283.15
A18: Spezifische Wärmekapazität (Bodenkorn) | B18: cM | C18: kJ/(kg·K) | D18: 2500 | E18: 2500 | L18: Spezifische Wärmekapazität | M18: kJ/(kg·K) | N18: 2500 | O18: 2500 | P18: 2500 | Q18: 2400 | R18: 2400

Sheet Schadstoffkonzentratonen Boden (hidden)
A5: Die Grafiken enthalten größensortierte Daten aus dem unteren Teil des Eingabeblattes (analysierte Konzentrationen) und dienen ausschließlich der Visualisierung der Werteverteilung
A21: Mittlere Schadstoffmasse im gesättigten Boden (Einheitsfläche) (MB) [mg/m²]
A22: Sondierung Nr. | B22: 1 | C22: 2 | D22: 3 | E22: 4 | F22: 5 | G22: 6 | H22: 7 | I22: 8 | J22: 9 | K22: 10 | L22: 11 | M22: 12 | N22: 13 | O22: 14 | P22: 15 | Q22: 16 | R22: 17 | S22: 18 | T22: 19 | U22: 20 | V22: Summe [kg] | W22: Mittlere Flächen-Konz. (MB) [mg/m²] | X22: Standard-abweich. (MB) [mg/m²] | Y22: MB + 2 s [mg/m²] | Z22: Inventar (MB-bezogen) [kg]
A23: Bezeichnung
A24: Flächenrepräsentanz [m²] | B24: 10 | C24: 10 | D24: 10 | E24: 10 | F24: 10 | G24: 10 | H24: 10 | I24: 10 | J24: 10 | K24: 10 | L24: 10 | M24: 10 | N24: 10 | O24: 10 | P24: 10 | Q24: 10 | R24: 10 | S24: 10 | T24: 10 | U24: 10 | V24: =IF(SUM(B24:U24)=Schadstoffbelastung!$I$6,SUM(B24:U24),"Σ ≠ "&Schadstoffbelastung!$I$6&"!") -> 200
A25: (Mono)aromatische Kohlenwasserstoffe (AKW)
A26: Benzol | B26: 500 | C26: 500 | D26: 500 | E26: 500 | F26: 500 | G26: 500 | H26: 500 | I26: 500 | J26: 500 | K26: 500 | L26: 500 | M26: 500 | N26: 500 | O26: 500 | P26: 500 | Q26: 2 | R26: 5000 | S26: 4 | T26: 18 | U26: 90 | V26: =(B26*B$24+C26*C$24+D26*D$24+E26*E$24+F26*F$24+G26*G$24+H26*H$24+I26*I$24+J26*J$24+K26*K$24+L26*L$24+M26*M$24+N26*N$24+O26*O$24+P26*P$24+Q26*Q$24+R26*R$24+S26*S$24+T26*T$24+U26*U$24)/1000/1000 -> 0.12614 | W26: =IF(SUM($B26:$U26)>0,AVERAGE($B26:$U26),"") -> 630.7 | X26: =IF(SUM($B26:$U26)>0,_xlfn.STDEV.S(B26:U26),"") -> 1046.367003 | Y26: =IF(SUM($B26:$U26)>0,W26+X26*2,"") -> 2723.434006 | Z26: =Y26*$V$24/1000/1000 -> 0.5446868013
A27: Toluol | B27: 500 | C27: 500 | D27: 500 | E27: 500 | F27: 500 | G27: 500 | H27: 500 | I27: 500 | J27: 500 | K27: 500 | L27: 500 | M27: 500 | N27: 500 | O27: 500 | P27: 500 | Q27: 2 | R27: 5000 | S27: 4 | T27: 18 | U27: 90 | V27: =(B27*B$24+C27*C$24+D27*D$24+E27*E$24+F27*F$24+G27*G$24+H27*H$24+I27*I$24+J27*J$24+K27*K$24+L27*L$24+M27*M$24+N27*N$24+O27*O$24+P27*P$24+Q27*Q$24+R27*R$24+S27*S$24+T27*T$24+U27*U$24)/1000/1000 -> 0.12614 | W27: =IF(SUM($B27:$U27)>0,AVERAGE($B27:$U27),"") -> 630.7 | X27: =IF(SUM($B27:$U27)>0,_xlfn.STDEV.S(B27:U27),"") -> 1046.367003 | Y27: =IF(SUM($B27:$U27)>0,W27+X27*2,"") -> 2723.434006 | Z27: =Y27*$V$24/1000/1000 -> 0.5446868013
A28: Ethylbenzol | B28: 500 | C28: 500 | D28: 500 | E28: 500 | F28: 500 | G28: 500 | H28: 500 | I28: 500 | J28: 500 | K28: 500 | L28: 500 | M28: 500 | N28: 500 | O28: 500 | P28: 500 | Q28: 2 | R28: 5000 | S28: 4 | T28: 18 | U28: 90 | V28: 0.12614 | W28: 630.7 | X28: 1046.367003 | Y28: 2723.434006 | Z28: 0.5446868013
A29: o-Xylol | B29: 500 | C29: 500 | D29: 500 | E29: 500 | F29: 500 | G29: 500 | H29: 500 | I29: 500 | J29: 500 | K29: 500 | L29: 500 | M29: 500 | N29: 500 | O29: 500 | P29: 500 | Q29: 2 | R29: 5000 | S29: 4 | T29: 18 | U29: 90 | V29: 0.12614 | W29: 630.7 | X29: 1046.367003 | Y29: 2723.434006 | Z29: 0.5446868013
A30: m-Xylol | B30: 500 | C30: 500 | D30: 500 | E30: 500 | F30: 500 | G30: 500 | H30: 500 | I30: 500 | J30: 500 | K30: 500 | L30: 500 | M30: 500 | N30: 500 | O30: 500 | P30: 500 | Q30: 2 | R30: 5000 | S30: 4 | T30: 18 | U30: 90 | V30: 0.12614 | W30: 630.7 | X30: 1046.367003 | Y30: 2723.434006 | Z30: 0.5446868013
A31: p-Xylol | B31: 500 | C31: 500 | D31: 500 | E31: 500 | F31: 500 | G31: 500 | H31: 500 | I31: 500 | J31: 500 | K31: 500 | L31: 500 | M31: 500 | N31: 500 | O31: 500 | P31: 500 | Q31: 2 | R31: 5000 | S31: 4 | T31: 18 | U31: 90 | V31: 0.12614 | W31: 630.7 | X31: 1046.367003 | Y31: 2723.434006 | Z31: 0.5446868013
A32: n-Propylbenzol | B32: 500 | C32: 500 | D32: 500 | E32: 500 | F32: 500 | G32: 500 | H32: 500 | I32: 500 | J32: 500 | K32: 500 | L32: 500 | M32: 500 | N32: 500 | O32: 500 | P32: 500 | Q32: 2 | R32: 5000 | S32: 4 | T32: 18 | U32: 90 | V32: 0.12614 | W32: 630.7 | X32: 1046.367003 | Y32: 2723.434006 | Z32: 0.5446868013
A33: Isopropylbenzol | B33: 500 | C33: 500 | D33: 500 | E33: 500 | F33: 500 | G33: 500 | H33: 500 | I33: 500 | J33: 500 | K33: 500 | L33: 500 | M33: 500 | N33: 500 | O33: 500 | P33: 500 | Q33: 2 | R33: 5000 | S33: 4 | T33: 18 | U33: 90 | V33: 0.12614 | W33: 630.7 | X33: 1046.367003 | Y33: 2723.434006 | Z33: 0.5446868013
A34: o-Ethyltoluol | B34: 500 | C34: 500 | D34: 500 | E34: 500 | F34: 500 | G34: 500 | H34: 500 | I34: 500 | J34: 500 | K34: 500 | L34: 500 | M34: 500 | N34: 500 | O34: 500 | P34: 500 | Q34: 2 | R34: 5000 | S34: 4 | T34: 18 | U34: 90 | V34: 0.12614 | W34: 630.7 | X34: 1046.367003 | Y34: 2723.434006 | Z34: 0.5446868013
A35: m-Ethyltoluol | B35: 500 | C35: 500 | D35: 500 | E35: 500 | F35: 500 | G35: 500 | H35: 500 | I35: 500 | J35: 500 | K35: 500 | L35: 500 | M35: 500 | N35: 500 | O35: 500 | P35: 500 | Q35: 2 | R35: 5000 | S35: 4 | T35: 18 | U35: 90 | V35: 0.12614 | W35: 630.7 | X35: 1046.367003 | Y35: 2723.434006 | Z35: 0.5446868013
A36: p-Ethyltoluol | B36: 500 | C36: 500 | D36: 500 | E36: 500 | F36: 500 | G36: 500 | H36: 500 | I36: 500 | J36: 500 | K36: 500 | L36: 500 | M36: 500 | N36: 500 | O36: 500 | P36: 500 | Q36: 2 | R36: 5000 | S36: 4 | T36: 18 | U36: 90 | V36: 0.12614 | W36: 630.7 | X36: 1046.367003 | Y36: 2723.434006 | Z36: 0.5446868013
A37: 1,2-Diethylbenzol | B37: 500 | C37: 500 | D37: 500 | E37: 500 | F37: 500 | G37: 500 | H37: 500 | I37: 500 | J37: 500 | K37: 500 | L37: 500 | M37: 500 | N37: 500 | O37: 500 | P37: 500 | Q37: 2 | R37: 5000 | S37: 4 | T37: 18 | U37: 90 | V37: 0.12614 | W37: 630.7 | X37: 1046.367003 | Y37: 2723.434006 | Z37: 0.5446868013
A38: 1,3-Diethylbenzol | B38: 500 | C38: 500 | D38: 500 | E38: 500 | F38: 500 | G38: 500 | H38: 500 | I38: 500 | J38: 500 | K38: 500 | L38: 500 | M38: 500 | N38: 500 | O38: 500 | P38: 500 | Q38: 2 | R38: 5000 | S38: 4 | T38: 18 | U38: 90 | V38: 0.12614 | W38: 630.7 | X38: 1046.367003 | Y38: 2723.434006 | Z38: 0.5446868013
A39: 1,4-Diethylbenzol | B39: 500 | C39: 500 | D39: 500 | E39: 500 | F39: 500 | G39: 500 | H39: 500 | I39: 500 | J39: 500 | K39: 500 | L39: 500 | M39: 500 | N39: 500 | O39: 500 | P39: 500 | Q39: 2 | R39: 5000 | S39: 4 | T39: 18 | U39: 90 | V39: 0.12614 | W39: 630.7 | X39: 1046.367003 | Y39: 2723.434006 | Z39: 0.5446868013
A40: 1,2,3-Trimethylbenzol | B40: 500 | C40: 500 | D40: 500 | E40: 500 | F40: 500 | G40: 500 | H40: 500 | I40: 500 | J40: 500 | K40: 500 | L40: 500 | M40: 500 | N40: 500 | O40: 500 | P40: 500 | Q40: 2 | R40: 5000 | S40: 4 | T40: 18 | U40: 90 | V40: 0.12614 | W40: 630.7 | X40: 1046.367003 | Y40: 2723.434006 | Z40: 0.5446868013
A41: 1,2,4-Trimethylbenzol | B41: 500 | C41: 500 | D41: 500 | E41: 500 | F41: 500 | G41: 500 | H41: 500 | I41: 500 | J41: 500 | K41: 500 | L41: 500 | M41: 500 | N41: 500 | O41: 500 | P41: 500 | Q41: 2 | R41: 5000 | S41: 4 | T41: 530 | U41: 710 | V41: 0.13746 | W41: 687.3 | X41: 1028.217523 | Y41: 2743.735045 | Z41: 0.548747009
A42: 1,3,5-Trimethylbenzol | Q42: 2 | R42: 5000 | S42: 4 | T42: 530 | U42: 710 | V42: 0.06246 | W42: 1249.2 | X42: 2120.289886 | Y42: 5489.779772 | Z42: 1.097955954
A43: BTEX | B43: =IF(SUM(B26:B31)>0,SUM(B26:B31),"") -> 3000 | C43: =IF(SUM(C26:C31)>0,SUM(C26:C31),"") -> 3000 | D43: 3000 | E43: 3000 | F43: 3000 | G43: 3000 | H43: 3000 | I43: 3000 | J43: 3000 | K43: 3000 | L43: 3000 | M43: 3000 | N43: 3000 | O43: 3000 | P43: 3000 | Q43: 12 | R43: 30000 | S43: 24 | T43: 108 | U43: =IF(SUM(U26:U31)>0,SUM(U26:U31),"") -> 540 | V43: =SUM(V26:V31) -> 0.75684 | W43: 3784.2 | X43: 6278.202019 | Y43: 16340.60404 | Z43: =SUM(Z26:Z31) -> 3.268120808
A44: AKW | B44: =IF(SUM(B26:B42)>0,SUM(B26:B42),"") -> 8000 | C44: =IF(SUM(C26:C42)>0,SUM(C26:C42),"") -> 8000 | D44: 8000 | E44: 8000 | F44: 8000 | G44: 8000 | H44: 8000 | I44: 8000 | J44: 8000 | K44: 8000 | L44: 8000 | M44: 8000 | N44: 8000 | O44: 8000 | P44: 8000 | Q44: 34 | R44: 85000 | S44: 68 | T44: 1330 | U44: 2770 | V44: =SUM(V26:V42) -> 2.09202 | W44: 10460.1 | X44: 17779.6065 | Y44: 46019.313 | Z44: =SUM(Z26:Z42) -> 9.817004982
A45: =Stoffdatenbank!$A$36 -> n-Alkane | B45: =Stoffdatenbank!$A$36 -> n-Alkane | C45: =Stoffdatenbank!$A$36 -> n-Alkane | D45: =Stoffdatenbank!$A$36 -> n-Alkane | E45: =Stoffdatenbank!$A$36 -> n-Alkane | F45: =Stoffdatenbank!$A$36 -> n-Alkane | G45: =Stoffdatenbank!$A$36 -> n-Alkane | H45: =Stoffdatenbank!$A$36 -> n-Alkane | I45: =Stoffdatenbank!$A$36 -> n-Alkane | J45: =Stoffdatenbank!$A$36 -> n-Alkane | K45: =Stoffdatenbank!$A$36 -> n-Alkane | L45: =Stoffdatenbank!$A$36 -> n-Alkane | M45: =Stoffdatenbank!$A$36 -> n-Alkane | N45: =Stoffdatenbank!$A$36 -> n-Alkane | O45: =Stoffdatenbank!$A$36 -> n-Alkane | P45: =Stoffdatenbank!$A$36 -> n-Alkane | Q45: =Stoffdatenbank!$A$36 -> n-Alkane | R45: =Stoffdatenbank!$A$36 -> n-Alkane | S45: =Stoffdatenbank!$A$36 -> n-Alkane | T45: =Stoffdatenbank!$A$36 -> n-Alkane | U45: =Stoffdatenbank!$A$36 -> n-Alkane | V45: =Stoffdatenbank!$A$36 -> n-Alkane
A46: =Stoffdatenbank!$A$37 -> n-Pentan | O46: 4000 | S46: 3 | V46: =(B46*B$24+C46*C$24+D46*D$24+E46*E$24+F46*F$24+G46*G$24+H46*H$24+I46*I$24+J46*J$24+K46*K$24+L46*L$24+M46*M$24+N46*N$24+O46*O$24+P46*P$24+Q46*Q$24+R46*R$24+S46*S$24+T46*T$24+U46*U$24)/1000/1000 -> 0.04003 | W46: =IF(SUM($B46:$U46)>0,AVERAGE($B46:$U46),"") -> 2001.5 | X46: =IF(SUM($B46:$U46)>0,_xlfn.STDEV.S(B46:U46),"") -> 2826.305804 | Y46: =IF(SUM($B46:$U46)>0,W46+X46*2,"") -> 7654.111609 | Z46: =Y46*$V$24/1000/1000 -> 1.530822322
A47: =Stoffdatenbank!$A$38 -> n-Hexan | O47: 4504 | S47: 3 | V47: =(B47*B$24+C47*C$24+D47*D$24+E47*E$24+F47*F$24+G47*G$24+H47*H$24+I47*I$24+J47*J$24+K47*K$24+L47*L$24+M47*M$24+N47*N$24+O47*O$24+P47*P$24+Q47*Q$24+R47*R$24+S47*S$24+T47*T$24+U47*U$24)/1000/1000 -> 0.04507 | W47: 2253.5 | X47: 3182.687622 | Y47: 8618.875244 | Z47: 1.723775049
A48: =Stoffdatenbank!$A$39 -> n-Heptan | O48: 334 | S48: 3 | V48: 0.00337 | W48: 168.5 | X48: 234.0523446 | Y48: 636.6046891 | Z48: 0.1273209378
A49: =Stoffdatenbank!$A$40 -> n-Octan | O49: 3435 | S49: 3 | V49: 0.03438 | W49: 1719 | X49: 2426.790473 | Y49: 6572.580946 | Z49: =Y49*$V$24/1000/1000 -> 1.314516189
A50: =Stoffdatenbank!$A$41 -> n-Nonan | O50: 22 | S50: 3 | V50: 0.00025 | W50: 12.5 | X50: 13.43502884 | Y50: 39.37005769 | Z50: 0.007874011537
A51: =Stoffdatenbank!$A$42 -> n-Decan | O51: 24 | S51: 3 | V51: 0.00027 | W51: 13.5 | X51: 14.8492424 | Y51: 43.19848481 | Z51: 0.008639696962
A52: =Stoffdatenbank!$A$36 -> n-Alkane | B52: =IF(SUM(B46:B51)>0,SUM(B46:B51),"") ->  | C52: =IF(SUM(C46:C51)>0,SUM(C46:C51),"") ->  | O52: 12319 | S52: 18 | V52: =SUM(V46:V50) -> 0.1231 | W52: 6168.5 | X52: 8698.120515 | Y52: 23564.74103 | Z52: =SUM(Z46:Z51) -> 4.712948206
A53: Oxigenate
A54: MTBE (Methyl-tert-butylether) | P54: 30000 | Q54: 4 | S54: 3 | V54: =(B54*B$24+C54*C$24+D54*D$24+E54*E$24+F54*F$24+G54*G$24+H54*H$24+I54*I$24+J54*J$24+K54*K$24+L54*L$24+M54*M$24+N54*N$24+O54*O$24+P54*P$24+Q54*Q$24+R54*R$24+S54*S$24+T54*T$24+U54*U$24)/1000/1000 -> 0.30007 | W54: =IF(SUM($B54:$U54)>0,AVERAGE($B54:$U54),"") -> 10002.33333 | X54: =IF(SUM($B54:$U54)>0,_xlfn.STDEV.S(B54:U54),"") -> 17318.48736 | Y54: =IF(SUM($B54:$U54)>0,W54+X54*2,"") -> 44639.30805 | Z54: =Y54*$V$24/1000/1000 -> 8.927861609
A55: ETBE (Ethyl-tert-butylether) | Q55: 44 | S55: 3 | V55: 0.00047 | W55: =IF(SUM($B55:$U55)>0,AVERAGE($B55:$U55),"") -> 23.5 | X55: =IF(SUM($B55:$U55)>0,_xlfn.STDEV.S(B55:U55),"") -> 28.99137803 | Y55: =IF(SUM($B55:$U55)>0,W55+X55*2,"") -> 81.48275606 | Z55: =Y55*$V$24/1000/1000 -> 0.01629655121
A56: TBA (tert-Butylalkohol) | Q56: 4 | S56: 3 | V56: 7e-05 | W56: =IF(SUM($B56:$U56)>0,AVERAGE($B56:$U56),"") -> 3.5 | X56: =IF(SUM($B56:$U56)>0,_xlfn.STDEV.S(B56:U56),"") -> 0.7071067812 | Y56: =IF(SUM($B56:$U56)>0,W56+X56*2,"") -> 4.914213562 | Z56: =Y56*$V$24/1000/1000 -> 0.0009828427125
A57: Oxigenate | B57: =IF(SUM(B54:B56)>0,SUM(B54:B56),"") ->  | C57: =IF(SUM(C54:C56)>0,SUM(C54:C56),"") ->  | P57: 30000 | Q57: 52 | S57: 9 | V57: =SUM(V54:V56) -> 0.30061 | W57: =IF(SUM($B57:$U57)>0,AVERAGE($B57:$U57),"") -> 10020.33333 | X57: =IF(SUM($B57:$U57)>0,_xlfn.STDEV.S(B57:U57),"") -> 17302.91225 | Y57: =IF(SUM($B57:$U57)>0,W57+X57*2,"") -> 44626.15783 | Z57: =SUM(Z54:Z56) -> 8.945141003
A60: Analysierte Schadstoffkonzentrationen im gesättigten Boden [mg/kg]
A61: Sondierung | B61: 1 | C61: 2 | D61: 3 | E61: 4 | F61: 5 | G61: 6 | H61: 7 | I61: 8 | J61: 9 | K61: 10 | L61: 11 | M61: 12 | N61: 13 | O61: 14 | P61: 15 | Q61: 16 | R61: 17 | S61: 18 | T61: 19 | U61: 20 | W61: Minimum [mg/kg OS] | X61: Maximum [mg/kg OS] | Y61: Median [mg/kg OS] | Z61: Mittlere Konz. (MW) [mg/kg OS] | AA61: Standard-abweich. [mg/kg OS] | AB61: MW + 2 s [mg/kg OS] | AC61: Inventar (Mittelwert-bezogen) [kg]
A63: Flächenrepräsentanz [m²] | B63: 10 | C63: 10 | D63: 10 | E63: 10 | F63: 10 | G63: 10 | K63: 10 | L63: 10 | M63: 10 | N63: 110 | V63: =IF(SUM(B63:U63)=Schadstoffbelastung!$I$6,"","Σ ≠ "&Schadstoffbelastung!$I$6&"!") -> 
A64: (Mono)aromatische Kohlenwasserstoffe (AKW) | Y64: =IFERROR(MEDIAN($B64:$U64),"") ->  | Z64: =IF(SUM($B64:$U64)>0,AVERAGE($B64:$U64),"") ->  | AA64: =IF(SUM($B64:$U64)>0,_xlfn.STDEV.S(B64:U64),"") ->  | AB64: =IF(SUM($B64:$U64)>0,Z64+AA64*2,"") -> 
A65: Benzol | K65: 2 | L65: 3 | M65: 4 | N65: 5 | O65: 0 | P65: 95 | Q65: 24 | R65: 0 | S65: 18 | W65: =MIN(B65:U65) -> 0 | X65: =MAX($B65:$U65) -> 95 | Y65: 4 | Z65: =IF(SUM($B65:$U65)>0,AVERAGE($B65:$U65),"") -> 16.77777778 | AA65: 30.5072851 | AB65: 77.79234799 | AC65: =AB65*Schadstoffbelastung!$I$12/1000 -> 117.8554072
A66: Toluol | K66: 2 | L66: 3 | M66: 4 | N66: 5 | O66: 2.4 | P66: 62 | Q66: 610 | R66: 4.7 | S66: 62 | W66: =MIN(B66:U66) -> 2 | X66: 610 | Y66: 4.7 | Z66: 83.9 | AA66: 198.908572 | AB66: 481.7171439 | AC66: =AB66*Schadstoffbelastung!$I$12/1000 -> 729.801473
A67: Ethylbenzol | K67: 2 | L67: 3 | M67: 4 | N67: 5 | O67: 95 | P67: 62 | Q67: 62 | R67: 120 | S67: 62 | W67: 2 | X67: 120 | Y67: 62 | Z67: 46.11111111 | AA67: 44.54616831 | AB67: 135.2034477 | AC67: =AB67*Schadstoffbelastung!$I$12/1000 -> 204.8332233
A68: o-Xylol | K68: 2 | L68: 3 | M68: 4 | N68: 5 | O68: 62 | P68: 62 | Q68: 62 | R68: 55 | S68: 62 | W68: 2 | X68: 62 | Y68: 55 | Z68: 35.22222222 | AA68: 30.18599749 | AB68: 95.5942172 | AC68: =AB68*Schadstoffbelastung!$I$12/1000 -> 144.8252391
A69: m-Xylol | K69: 2 | L69: 3 | M69: 4 | N69: 5 | O69: 4.9 | P69: 62 | Q69: 62 | R69: 6.8 | S69: 62 | W69: 2 | X69: 62 | Y69: 5 | Z69: 23.52222222 | AA69: 28.88900214 | AB69: 81.3002265 | AC69: =AB69*Schadstoffbelastung!$I$12/1000 -> 123.1698431
A70: p-Xylol | K70: 2 | L70: 3 | M70: 4 | N70: 5 | O70: 0 | P70: 62 | Q70: 62 | R70: 0 | S70: 62 | W70: 0 | X70: 62 | Y70: 4 | Z70: 22.22222222 | AA70: 29.87799264 | AB70: 81.97820751 | AC70: =AB70*Schadstoffbelastung!$I$12/1000 -> 124.1969844
A71: n-Propylbenzol | K71: 2 | L71: 3 | M71: 4 | N71: 5 | O71: 0 | P71: 62 | Q71: 62 | R71: 0 | S71: 62 | W71: 0 | X71: 62 | Y71: 4 | Z71: 22.22222222 | AA71: 29.87799264 | AB71: 81.97820751 | AC71: =AB71*Schadstoffbelastung!$I$12/1000 -> 124.1969844
A72: Isopropylbenzol | K72: 2 | L72: 3 | M72: 4 | N72: 5 | O72: 0 | P72: 62 | Q72: 62 | R72: 0 | S72: 62 | W72: 0 | X72: 62 | Y72: 4 | Z72: 22.22222222 | AA72: 29.87799264 | AB72: 81.97820751 | AC72: =AB72*Schadstoffbelastung!$I$12/1000 -> 124.1969844
A73: o-Ethyltoluol | K73: 2 | L73: 3 | M73: 4 | N73: 5 | O73: 2.6 | P73: 62 | Q73: 62 | R73: 2.2 | S73: 62 | W73: 2 | X73: 62 | Y73: 4 | Z73: 22.75555556 | AA73: 29.44754281 | AB73: 81.65064118 | AC73: =AB73*Schadstoffbelastung!$I$12/1000 -> 123.7007214
A74: m-Ethyltoluol | K74: 2 | L74: 3 | M74: 4 | N74: 5 | O74: 2.6 | P74: 62 | Q74: 62 | R74: 2.2 | S74: 62 | W74: 2 | X74: 62 | Y74: 4 | Z74: 22.75555556 | AA74: 29.44754281 | AB74: 81.65064118 | AC74: =AB74*Schadstoffbelastung!$I$12/1000 -> 123.7007214
A75: p-Ethyltoluol | K75: 2 | L75: 3 | M75: 4 | N75: 5 | O75: 0 | P75: 62 | Q75: 62 | R75: 0 | S75: 62 | W75: 0 | X75: 62 | Y75: 4 | Z75: 22.22222222 | AA75: 29.87799264 | AB75: 81.97820751 | AC75: =AB75*Schadstoffbelastung!$I$12/1000 -> 124.1969844
A76: 1,2-Diethylbenzol | K76: 2 | L76: 3 | M76: 4 | N76: 5 | O76: 0 | P76: 62 | Q76: 62 | R76: 0 | S76: 62 | W76: 0 | X76: 62 | Y76: 4 | Z76: 22.22222222 | AA76: 29.87799264 | AB76: 81.97820751 | AC76: =AB76*Schadstoffbelastung!$I$12/1000 -> 124.1969844
A77: 1,3-Diethylbenzol | K77: 2 | L77: 3 | M77: 4 | N77: 5 | O77: 0 | P77: 39 | Q77: 62 | R77: 0 | S77: 62 | W77: 0 | X77: 62 | Y77: 4 | Z77: 19.66666667 | AA77: 26.88401012 | AB77: 73.4346869 | AC77: =AB77*Schadstoffbelastung!$I$12/1000 -> 111.2535507
A78: 1,4-Diethylbenzol | K78: 2 | L78: 3 | M78: 4 | N78: 5 | O78: 0 | P78: 370 | Q78: 62 | R78: 0 | S78: 62 | W78: 0 | X78: 370 | Y78: 4 | Z78: 56.44444444 | AA78: 120.3994509 | AB78: 297.2433463 | AC78: =AB78*Schadstoffbelastung!$I$12/1000 -> 450.3236696
A79: 1,2,3-Trimethylbenzol | K79: 2 | L79: 3 | M79: 4 | N79: 5 | O79: 3.2 | P79: 920 | Q79: 62 | R79: 2.7 | S79: 62 | W79: 2 | X79: 920 | Y79: 4 | Z79: 118.2111111 | AA79: 301.7438336 | AB79: 721.6987783 | AC79: =AB79*Schadstoffbelastung!$I$12/1000 -> 1093.373649
A80: 1,2,4-Trimethylbenzol | K80: 2 | L80: 3 | M80: 4 | N80: 5 | O80: 0 | P80: 230 | Q80: 67 | R80: 0 | S80: 530 | W80: 0 | X80: 530 | Y80: 4 | Z80: 93.44444444 | AA80: 180.1930292 | AB80: 453.8305029 | AC80: =AB80*Schadstoffbelastung!$I$12/1000 -> 687.5532119
A81: 1,3,5-Trimethylbenzol | K81: 2 | L81: 3 | M81: 4 | N81: 5 | O81: 0 | P81: 230 | Q81: 67 | R81: 0 | S81: 530 | W81: 0 | X81: 530 | Y81: 4 | Z81: 93.44444444 | AA81: 180.1930292 | AB81: 453.8305029 | AC81: =AB81*Schadstoffbelastung!$I$12/1000 -> 687.5532119
A82: BTEX | B82: =IF(SUM(B65:B70)>0,SUM(B65:B70),"") ->  | C82: =IF(SUM(C65:C70)>0,SUM(C65:C70),"") ->  | K82: 12 | L82: 18 | M82: 24 | N82: 30 | O82: 164.3 | P82: 405 | Q82: 882 | R82: 186.5 | S82: 328 | W82: 12 | X82: 882 | Y82: 164.3 | Z82: 227.7555556 | AA82: 284.2534965 | AB82: 796.2625486 | AC82: =IF(SUM($B82:$U82)>0,AA82+AB82*2,"") -> 1876.778594
A83: AKW | B83: =IF(SUM(B65:B81)>0,SUM(B65:B81),"") ->  | C83: =IF(SUM(C65:C81)>0,SUM(C65:C81),"") ->  | K83: 34 | L83: 51 | M83: 68 | N83: 85 | O83: 172.7 | P83: 2566 | Q83: 1574 | R83: 193.6 | S83: 1946 | W83: 34 | X83: 2566 | Y83: 172.7 | Z83: 743.3666667 | AA83: 997.3912372 | AB83: 2738.149141 | AC83: =IF(SUM($B83:$U83)>0,AA83+AB83*2,"") -> 6473.689519
A84: =Stoffdatenbank!$A$36 -> n-Alkane | B84: =Stoffdatenbank!$A$36 -> n-Alkane | C84: =Stoffdatenbank!$A$36 -> n-Alkane | D84: =Stoffdatenbank!$A$36 -> n-Alkane | E84: =Stoffdatenbank!$A$36 -> n-Alkane | F84: =Stoffdatenbank!$A$36 -> n-Alkane | G84: =Stoffdatenbank!$A$36 -> n-Alkane | H84: =Stoffdatenbank!$A$36 -> n-Alkane | I84: =Stoffdatenbank!$A$36 -> n-Alkane | J84: =Stoffdatenbank!$A$36 -> n-Alkane | K84: =Stoffdatenbank!$A$36 -> n-Alkane | L84: =Stoffdatenbank!$A$36 -> n-Alkane | M84: =Stoffdatenbank!$A$36 -> n-Alkane | N84: =Stoffdatenbank!$A$36 -> n-Alkane | O84: =Stoffdatenbank!$A$36 -> n-Alkane | P84: =Stoffdatenbank!$A$36 -> n-Alkane | Q84: =Stoffdatenbank!$A$36 -> n-Alkane | R84: =Stoffdatenbank!$A$36 -> n-Alkane | S84: =Stoffdatenbank!$A$36 -> n-Alkane | T84: =Stoffdatenbank!$A$36 -> n-Alkane | U84: =Stoffdatenbank!$A$36 -> n-Alkane
A85: =Stoffdatenbank!$A$37 -> n-Pentan | B85: 1 | C85: 2 | D85: 3 | E85: 4 | F85: 5 | G85: 6 | H85: 7 | I85: 8 | J85: 9 | K85: 2 | L85: 3 | M85: 4 | N85: 5 | O85: 22 | P85: 33 | Q85: 2 | R85: 34 | S85: 3 | W85: =MIN(B85:U85) -> 1 | X85: =MAX($B85:$U85) -> 34 | Y85: =IFERROR(MEDIAN($B85:$U85),"") -> 4.5 | Z85: 8.5 | AA85: 10.23402629 | AB85: 28.96805258 | AC85: =AB85*Schadstoffbelastung!$I$12/1000 -> 43.88659966
A86: =Stoffdatenbank!$A$38 -> n-Hexan | K86: 2 | L86: 3 | M86: 4 | N86: 5 | W86: =MIN(B86:U86) -> 2 | X86: 5 | Y86: 3.5 | Z86: 3.5 | AA86: 1.290994449 | AB86: 6.081988897 | AC86: =AB86*Schadstoffbelastung!$I$12/1000 -> 9.21421318
A87: =Stoffdatenbank!$A$39 -> n-Heptan | G87: 1 | K87: 2 | L87: 3 | M87: 4 | N87: 5 | W87: 1 | X87: 5 | Y87: 3 | Z87: 3 | AA87: 1.58113883 | AB87: 6.16227766 | AC87: =AB87*Schadstoffbelastung!$I$12/1000 -> 9.335850655
A88: =Stoffdatenbank!$A$40 -> n-Octan | K88: 2 | L88: 3 | M88: 4 | N88: 5 | W88: 2 | X88: 5 | Y88: 3.5 | Z88: 3.5 | AA88: 1.290994449 | AB88: 6.081988897 | AC88: =AB88*Schadstoffbelastung!$I$12/1000 -> 9.21421318
A89: =Stoffdatenbank!$A$41 -> n-Nonan | K89: 2 | L89: 3 | M89: 4 | N89: 5 | W89: 2 | X89: 5 | Y89: 3.5 | Z89: 3.5 | AA89: 1.290994449 | AB89: 6.081988897 | AC89: =AB89*Schadstoffbelastung!$I$12/1000 -> 9.21421318
A90: =Stoffdatenbank!$A$42 -> n-Decan | K90: 2 | L90: 3 | M90: 4 | N90: 5 | W90: 2 | X90: 5 | Y90: 3.5 | Z90: 3.5 | AA90: 1.290994449 | AB90: 6.081988897 | AC90: =AB90*Schadstoffbelastung!$I$12/1000 -> 9.21421318
A91: =Stoffdatenbank!$A$36 -> n-Alkane | B91: =IF(SUM(B85:B90)>0,SUM(B85:B90),"") -> 1 | C91: =IF(SUM(C85:C90)>0,SUM(C85:C90),"") -> 2 | D91: 3 | E91: 4 | F91: 5 | G91: 7 | H91: 7 | I91: 8 | J91: 9 | K91: 12 | L91: 18 | M91: 24 | N91: 30 | O91: 22 | P91: 33 | Q91: 2 | R91: 34 | S91: 3 | W91: =MIN(B91:U91) -> 1 | X91: 34 | Y91: 7.5 | Z91: 12.44444444 | AA91: 11.36673279 | AB91: 35.17791003 | AC91: =IF(SUM($B91:$U91)>0,AA91+AB91*2,"") -> 81.72255285
A92: Oxigenate
A93: MTBE (Methyl-tert-butylether) | K93: 2 | L93: 3 | M93: 4 | N93: 5 | W93: =MIN(B93:U93) -> 2 | X93: =MAX($B93:$U93) -> 5 | Y93: =IFERROR(MEDIAN($B93:$U93),"") -> 3.5 | Z93: 3.5 | AA93: 1.290994449 | AB93: 6.081988897 | AC93: =AB93*Schadstoffbelastung!$I$12/1000 -> 9.21421318
A94: ETBE (Ethyl-tert-butylether) | K94: 2 | L94: 3 | M94: 4 | N94: 5 | W94: =MIN(B94:U94) -> 2 | X94: =MAX($B94:$U94) -> 5 | Y94: =IFERROR(MEDIAN($B94:$U94),"") -> 3.5 | Z94: 3.5 | AA94: 1.290994449 | AB94: 6.081988897 | AC94: =AB94*Schadstoffbelastung!$I$12/1000 -> 9.21421318
A95: TBA (tert-Butylalkohol) | K95: 2 | L95: 3 | M95: 4 | N95: 5 | W95: =MIN(B95:U95) -> 2 | X95: =MAX($B95:$U95) -> 5 | Y95: =IFERROR(MEDIAN($B95:$U95),"") -> 3.5 | Z95: 3.5 | AA95: 1.290994449 | AB95: 6.081988897 | AC95: =AB95*Schadstoffbelastung!$I$12/1000 -> 9.21421318
A96: Oxigenate | B96: =IF(SUM(B93:B95)>0,SUM(B93:B95),"") ->  | C96: =IF(SUM(C93:C95)>0,SUM(C93:C95),"") ->  | K96: 6 | L96: 9 | M96: 12 | N96: 15 | W96: =MIN(B96:U96) -> 6 | X96: =MAX($B96:$U96) -> 15 | Y96: =IFERROR(MEDIAN($B96:$U96),"") -> 10.5 | Z96: 10.5 | AA96: 3.872983346 | AB96: 18.24596669 | AC96: =IF(SUM($B96:$U96)>0,AA96+AB96*2,"") -> 40.36491673

Sheet Schadstoffkonzentrationen GW (hidden)
A3: Schadstoffkonzentrationen im Grundwasser (gelöst) [µg/L] | I3: Korrekturfaktor | K3: 10
A5: Messstelle Nr. | B5: 1 | C5: 2 | D5: 3 | E5: 4 | F5: 5 | G5: 6 | H5: 7 | I5: 8 | J5: 9 | K5: 10 | L5: 11 | M5: 12 | N5: 13 | O5: 14 | P5: 15 | Q5: 16 | R5: 17 | S5: 18 | T5: 19 | U5: 20 | V5: Summe Inventar [kg] | X5: Koorigiertes Inventar (MW-bezogen) [kg] | Y5: Mittlere Konz. (MW) [µg/L] | Z5: Inventar (gelöst) [kg] | AA5: Inventar (sorbiert) [kg]
A6: Bezeichnung
A7: (Mono)aromatische Kohlenwasserstoffe (AKW)
A8: Benzol | B8: 0 | C8: 80 | D8: 24 | E8: 0 | F8: 18 | G8: 0 | H8: 18 | I8: 18 | J8: 18 | K8: 18 | L8: 18 | M8: 18 | N8: 18 | O8: 18 | P8: 3 | Q8: 18 | R8: 18 | S8: 18 | T8: 18 | U8: 18 | V8: =IF(SUM(B8:U8)>0,(Z8+AA8)*$K$3,"") -> 0.276789 | X8: =V8 -> 0.276789 | Y8: =IF(SUM($B8:$U8)>0,AVERAGE($B8:$U8),"") -> 17.95 | Z8: =IF(SUM(B8:U8)>0,Schadstoffbelastung!$I$6*Schadstoffbelastung!$I$9*Bodencharakterisierung!$D$8*Y8/1000/1000,"") -> 0.0059235 | AA8: =IF(SUM(B8:U8)>0,Schadstoffbelastung!$I$6*Schadstoffbelastung!$I$9*Bodencharakterisierung!$D$11*Y8*Stoffdatenbank!$J19*Bodencharakterisierung!$D$9/1000/1000,"") -> 0.0217554
A9: Toluol | B9: 2.4 | C9: 14000 | D9: 610 | E9: 4.7 | F9: 2500 | G9: 0 | H9: 2500 | I9: 2500 | J9: 2500 | K9: 2500 | L9: 2500 | M9: 2500 | N9: 2500 | O9: 2500 | P9: 3 | Q9: 2500 | R9: 2500 | S9: 2500 | T9: 2500 | U9: 2500 | V9: =IF(SUM(B9:U9)>0,(Z9+AA9)*$K$3,"") -> 120.9489937 | X9: 120.9489937 | Y9: =IF(SUM($B9:$U9)>0,AVERAGE($B9:$U9),"") -> 2481.005 | Z9: =IF(SUM(B9:U9)>0,Schadstoffbelastung!$I$6*Schadstoffbelastung!$I$9*Bodencharakterisierung!$D$8*Y9/1000/1000,"") -> 0.81873165 | AA9: =IF(SUM(B9:U9)>0,Schadstoffbelastung!$I$6*Schadstoffbelastung!$I$9*Bodencharakterisierung!$D$11*Y9*Stoffdatenbank!$J20*Bodencharakterisierung!$D$9/1000/1000,"") -> 11.27616772
A10: Ethylbenzol | B10: 95 | C10: 39000 | D10: 21000 | E10: 120 | F10: 33000 | G10: 140 | H10: 33000 | I10: 33000 | J10: 33000 | K10: 33000 | L10: 33000 | M10: 33000 | N10: 33000 | O10: 33000 | P10: 3 | Q10: 33000 | R10: 33000 | S10: 33000 | T10: 33000 | U10: 33000 | V10: =IF(SUM(B10:U10)>0,(Z10+AA10)*$K$3,"") -> 4438.737105 | X10: =V10 -> 4438.737105 | Y10: =IF(SUM($B10:$U10)>0,AVERAGE($B10:$U10),"") -> 26117.9 | Z10: =IF(SUM(B10:U10)>0,Schadstoffbelastung!$I$6*Schadstoffbelastung!$I$9*Bodencharakterisierung!$D$8*Y10/1000/1000,"") -> 8.618907 | AA10: =IF(SUM(B10:U10)>0,Schadstoffbelastung!$I$6*Schadstoffbelastung!$I$9*Bodencharakterisierung!$D$11*Y10*Stoffdatenbank!$J21*Bodencharakterisierung!$D$9/1000/1000,"") -> 435.2548035
A11: o-Xylol | B11: 62 | C11: 24000 | D11: 7400 | E11: 55 | F11: 20000 | G11: 37 | H11: 20000 | I11: 20000 | J11: 20000 | K11: 20000 | L11: 20000 | M11: 20000 | N11: 20000 | O11: 20000 | P11: 3 | Q11: 20000 | R11: 20000 | S11: 20000 | T11: 20000 | U11: 20000 | V11: 2010.243653 | X11: 2010.243653 | Y11: 15577.85 | Z11: =IF(SUM(B11:U11)>0,Schadstoffbelastung!$I$6*Schadstoffbelastung!$I$9*Bodencharakterisierung!$D$8*Y11/1000/1000,"") -> 5.1406905 | AA11: =IF(SUM(B11:U11)>0,Schadstoffbelastung!$I$6*Schadstoffbelastung!$I$9*Bodencharakterisierung!$D$11*Y11*Stoffdatenbank!$J22*Bodencharakterisierung!$D$9/1000/1000,"") -> 195.8836748
A12: m-Xylol | B12: 4.9 | C12: 2800 | D12: 1100 | E12: 6.8 | F12: 2700 | G12: 0 | H12: 2700 | I12: 2700 | J12: 2700 | K12: 2700 | L12: 2700 | M12: 2700 | N12: 2700 | O12: 2700 | P12: 3 | Q12: 2700 | R12: 2700 | S12: 2700 | T12: 2700 | U12: 2700 | V12: 316.5520009 | X12: 316.5520009 | Y12: 2085.735 | Z12: =IF(SUM(B12:U12)>0,Schadstoffbelastung!$I$6*Schadstoffbelastung!$I$9*Bodencharakterisierung!$D$8*Y12/1000/1000,"") -> 0.68829255 | AA12: =IF(SUM(B12:U12)>0,Schadstoffbelastung!$I$6*Schadstoffbelastung!$I$9*Bodencharakterisierung!$D$11*Y12*Stoffdatenbank!$J23*Bodencharakterisierung!$D$9/1000/1000,"") -> 30.96690754
A13: p-Xylol | B13: 0 | C13: 130 | D13: 38 | E13: 0 | F13: 300 | G13: 9.4 | H13: 300 | I13: 300 | J13: 300 | K13: 300 | L13: 300 | M13: 300 | N13: 300 | O13: 300 | P13: 3 | Q13: 300 | R13: 300 | S13: 300 | T13: 300 | U13: 300 | V13: 29.9225124 | X13: 29.9225124 | Y13: 219.02 | Z13: =IF(SUM(B13:U13)>0,Schadstoffbelastung!$I$6*Schadstoffbelastung!$I$9*Bodencharakterisierung!$D$8*Y13/1000/1000,"") -> 0.0722766 | AA13: =IF(SUM(B13:U13)>0,Schadstoffbelastung!$I$6*Schadstoffbelastung!$I$9*Bodencharakterisierung!$D$11*Y13*Stoffdatenbank!$J24*Bodencharakterisierung!$D$9/1000/1000,"") -> 2.91997464
A14: n-Propylbenzol | B14: 0 | C14: 61 | D14: 19 | E14: 0 | F14: 130 | G14: 0 | H14: 130 | I14: 130 | J14: 130 | K14: 130 | L14: 130 | M14: 130 | N14: 130 | O14: 130 | P14: 3 | Q14: 130 | R14: 130 | S14: 130 | T14: 130 | U14: 130 | V14: 14.4409155 | X14: 14.4409155 | Y14: 95.15 | Z14: =IF(SUM(B14:U14)>0,Schadstoffbelastung!$I$6*Schadstoffbelastung!$I$9*Bodencharakterisierung!$D$8*Y14/1000/1000,"") -> 0.0313995 | AA14: =IF(SUM(B14:U14)>0,Schadstoffbelastung!$I$6*Schadstoffbelastung!$I$9*Bodencharakterisierung!$D$11*Y14*Stoffdatenbank!$J25*Bodencharakterisierung!$D$9/1000/1000,"") -> 1.41269205
A15: Isopropylbenzol | B15: 0 | C15: 290 | D15: 99 | E15: 0 | F15: 500 | G15: 4.5 | H15: 500 | I15: 500 | J15: 500 | K15: 500 | L15: 500 | M15: 500 | N15: 500 | O15: 500 | P15: 3 | Q15: 500 | R15: 500 | S15: 500 | T15: 500 | U15: 500 | V15: 53.88720075 | X15: 53.88720075 | Y15: 369.825 | Z15: =IF(SUM(B15:U15)>0,Schadstoffbelastung!$I$6*Schadstoffbelastung!$I$9*Bodencharakterisierung!$D$8*Y15/1000/1000,"") -> 0.12204225 | AA15: =IF(SUM(B15:U15)>0,Schadstoffbelastung!$I$6*Schadstoffbelastung!$I$9*Bodencharakterisierung!$D$11*Y15*Stoffdatenbank!$J26*Bodencharakterisierung!$D$9/1000/1000,"") -> 5.266677825
A16: o-Ethyltoluol | B16: 2.6 | C16: 910 | D16: 230 | E16: 2.2 | F16: 1400 | G16: 12 | H16: 1400 | I16: 1400 | J16: 1400 | K16: 1400 | L16: 1400 | M16: 1400 | N16: 1400 | O16: 1400 | P16: 3 | Q16: 1400 | R16: 1400 | S16: 1400 | T16: 1400 | U16: 1400 | V16: 127.6572002 | X16: 127.6572002 | Y16: 1037.99 | Z16: =IF(SUM(B16:U16)>0,Schadstoffbelastung!$I$6*Schadstoffbelastung!$I$9*Bodencharakterisierung!$D$8*Y16/1000/1000,"") -> 0.3425367 | AA16: =IF(SUM(B16:U16)>0,Schadstoffbelastung!$I$6*Schadstoffbelastung!$I$9*Bodencharakterisierung!$D$11*Y16*Stoffdatenbank!$J27*Bodencharakterisierung!$D$9/1000/1000,"") -> 12.42318332
A17: m-Ethyltoluol | P17: 3 | V17: 0.35532 | X17: 0.35532 | Y17: 3 | Z17: =IF(SUM(B17:U17)>0,Schadstoffbelastung!$I$6*Schadstoffbelastung!$I$9*Bodencharakterisierung!$D$8*Y17/1000/1000,"") -> 0.00099 | AA17: =IF(SUM(B17:U17)>0,Schadstoffbelastung!$I$6*Schadstoffbelastung!$I$9*Bodencharakterisierung!$D$11*Y17*Stoffdatenbank!$J28*Bodencharakterisierung!$D$9/1000/1000,"") -> 0.034542
A18: p-Ethyltoluol | B18: 0 | C18: 0 | D18: 0 | E18: 0 | F18: 5.4 | G18: 0 | H18: 5.4 | I18: 5.4 | J18: 5.4 | K18: 5.4 | L18: 5.4 | M18: 5.4 | N18: 5.4 | O18: 5.4 | P18: 33 | Q18: 5.4 | R18: 5.4 | S18: 5.4 | T18: 5.4 | U18: 5.4 | V18: 0.7582995 | X18: 0.7582995 | Y18: 5.43 | Z18: =IF(SUM(B18:U18)>0,Schadstoffbelastung!$I$6*Schadstoffbelastung!$I$9*Bodencharakterisierung!$D$8*Y18/1000/1000,"") -> 0.0017919 | AA18: =IF(SUM(B18:U18)>0,Schadstoffbelastung!$I$6*Schadstoffbelastung!$I$9*Bodencharakterisierung!$D$11*Y18*Stoffdatenbank!$J29*Bodencharakterisierung!$D$9/1000/1000,"") -> 0.07403805
A19: 1,2-Diethylbenzol | B19: 0 | C19: 13 | D19: 0 | E19: 0 | F19: 37 | G19: 0 | H19: 37 | I19: 37 | J19: 37 | K19: 37 | L19: 37 | M19: 37 | N19: 37 | O19: 37 | P19: 3 | Q19: 37 | R19: 37 | S19: 37 | T19: 37 | U19: 37 | V19: 2.110635 | X19: 2.110635 | Y19: =IF(SUM($B19:$U19)>0,AVERAGE($B19:$U19),"") -> 26.7 | Z19: =IF(SUM(B19:U19)>0,Schadstoffbelastung!$I$6*Schadstoffbelastung!$I$9*Bodencharakterisierung!$D$8*Y19/1000/1000,"") -> 0.008811 | AA19: =IF(SUM(B19:U19)>0,Schadstoffbelastung!$I$6*Schadstoffbelastung!$I$9*Bodencharakterisierung!$D$11*Y19*Stoffdatenbank!$J30*Bodencharakterisierung!$D$9/1000/1000,"") -> 0.2022525
A20: 1,3-Diethylbenzol | B20: 0 | C20: 39 | D20: 7.9 | E20: 0 | F20: 120 | G20: 0 | H20: 120 | I20: 120 | J20: 120 | K20: 120 | L20: 120 | M20: 120 | N20: 120 | O20: 120 | P20: 3 | Q20: 120 | R20: 120 | S20: 120 | T20: 120 | U20: 120 | V20: 5.78911035 | X20: 5.78911035 | Y20: 86.495 | Z20: =IF(SUM(B20:U20)>0,Schadstoffbelastung!$I$6*Schadstoffbelastung!$I$9*Bodencharakterisierung!$D$8*Y20/1000/1000,"") -> 0.02854335 | AA20: =IF(SUM(B20:U20)>0,Schadstoffbelastung!$I$6*Schadstoffbelastung!$I$9*Bodencharakterisierung!$D$11*Y20*Stoffdatenbank!$J31*Bodencharakterisierung!$D$9/1000/1000,"") -> 0.550367685
A21: 1,4-Diethylbenzol | B21: 0 | C21: 370 | D21: 96 | E21: 0 | F21: 710 | G21: 13 | H21: 710 | I21: 710 | J21: 710 | K21: 710 | L21: 710 | M21: 710 | N21: 710 | O21: 710 | P21: 3 | Q21: 710 | R21: 710 | S21: 710 | T21: 710 | U21: 710 | V21: 38.035089 | X21: 38.035089 | Y21: 521.1 | Z21: =IF(SUM(B21:U21)>0,Schadstoffbelastung!$I$6*Schadstoffbelastung!$I$9*Bodencharakterisierung!$D$8*Y21/1000/1000,"") -> 0.171963 | AA21: =IF(SUM(B21:U21)>0,Schadstoffbelastung!$I$6*Schadstoffbelastung!$I$9*Bodencharakterisierung!$D$11*Y21*Stoffdatenbank!$J32*Bodencharakterisierung!$D$9/1000/1000,"") -> 3.6315459
A22: 1,2,3-Trimethylbenzol | B22: 3.2 | C22: 920 | D22: 300 | E22: 2.7 | F22: 1700 | G22: 76 | H22: 1700 | I22: 1700 | J22: 1700 | K22: 1700 | L22: 1700 | M22: 1700 | N22: 1700 | O22: 1700 | P22: 5 | Q22: 1700 | R22: 1700 | S22: 1700 | T22: 1700 | U22: 1700 | V22: 127.7627374 | X22: 127.7627374 | Y22: 1255.345 | Z22: =IF(SUM(B22:U22)>0,Schadstoffbelastung!$I$6*Schadstoffbelastung!$I$9*Bodencharakterisierung!$D$8*Y22/1000/1000,"") -> 0.41426385 | AA22: =IF(SUM(B22:U22)>0,Schadstoffbelastung!$I$6*Schadstoffbelastung!$I$9*Bodencharakterisierung!$D$11*Y22*Stoffdatenbank!$J33*Bodencharakterisierung!$D$9/1000/1000,"") -> 12.36200989
A23: 1,2,4-Trimethylbenzol | B23: 0 | C23: 230 | D23: 67 | E23: 0 | F23: 530 | G23: 2.7 | H23: 530 | I23: 530 | J23: 530 | K23: 530 | L23: 530 | M23: 530 | N23: 530 | O23: 530 | P23: 3 | Q23: 530 | R23: 530 | S23: 530 | T23: 530 | U23: 530 | V23: 39.29888963 | X23: 39.29888963 | Y23: 386.135 | Z23: =IF(SUM(B23:U23)>0,Schadstoffbelastung!$I$6*Schadstoffbelastung!$I$9*Bodencharakterisierung!$D$8*Y23/1000/1000,"") -> 0.12742455 | AA23: =IF(SUM(B23:U23)>0,Schadstoffbelastung!$I$6*Schadstoffbelastung!$I$9*Bodencharakterisierung!$D$11*Y23*Stoffdatenbank!$J34*Bodencharakterisierung!$D$9/1000/1000,"") -> 3.802464413
A24: 1,3,5-Trimethylbenzol | B24: 0 | C24: 230 | D24: 67 | E24: 0 | F24: 530 | G24: 2.7 | H24: 530 | I24: 530 | J24: 530 | K24: 530 | L24: 530 | M24: 530 | N24: 530 | O24: 530 | P24: 8 | Q24: 530 | R24: 530 | S24: 530 | T24: 530 | U24: 530 | V24: 40.49507992 | X24: 40.49507992 | Y24: 386.385 | Z24: =IF(SUM(B24:U24)>0,Schadstoffbelastung!$I$6*Schadstoffbelastung!$I$9*Bodencharakterisierung!$D$8*Y24/1000/1000,"") -> 0.12750705 | AA24: =IF(SUM(B24:U24)>0,Schadstoffbelastung!$I$6*Schadstoffbelastung!$I$9*Bodencharakterisierung!$D$11*Y24*Stoffdatenbank!$J35*Bodencharakterisierung!$D$9/1000/1000,"") -> 3.922000942
A25: BTEX | B25: =IF(SUM(B8:B13)>0,SUM(B8:B13),"") -> 164.3 | C25: =IF(SUM(C8:C13)>0,SUM(C8:C13),"") -> 80010 | D25: 30172 | E25: 186.5 | F25: 58518 | G25: 186.4 | H25: 58518 | I25: 58518 | J25: 58518 | K25: 58518 | L25: 58518 | M25: 58518 | N25: 58518 | O25: 58518 | P25: 18 | Q25: 58518 | R25: 58518 | S25: 58518 | T25: 58518 | U25: 58518 | V25: =SUM(V8:V13) -> 6916.681054
A26: AKW | B26: =IF(SUM(B8:B24)>0,SUM(B8:B24),"") -> 170.1 | C26: =IF(SUM(C8:C24)>0,SUM(C8:C24),"") -> 83073 | D26: 31057.9 | E26: 191.4 | F26: 64180.4 | G26: 297.3 | H26: 64180.4 | I26: 64180.4 | J26: 64180.4 | K26: 64180.4 | L26: 64180.4 | M26: 64180.4 | N26: 64180.4 | O26: 64180.4 | P26: 88 | Q26: 64180.4 | R26: 64180.4 | S26: 64180.4 | T26: 64180.4 | U26: 64180.4 | V26: =SUM(V8:V24) -> 7367.271532
A27: =Stoffdatenbank!$A$36 -> n-Alkane | B27: =Stoffdatenbank!$A$36 -> n-Alkane | C27: =Stoffdatenbank!$A$36 -> n-Alkane | D27: =Stoffdatenbank!$A$36 -> n-Alkane | E27: =Stoffdatenbank!$A$36 -> n-Alkane | F27: =Stoffdatenbank!$A$36 -> n-Alkane | G27: =Stoffdatenbank!$A$36 -> n-Alkane | H27: =Stoffdatenbank!$A$36 -> n-Alkane | I27: =Stoffdatenbank!$A$36 -> n-Alkane | J27: =Stoffdatenbank!$A$36 -> n-Alkane | K27: =Stoffdatenbank!$A$36 -> n-Alkane | L27: =Stoffdatenbank!$A$36 -> n-Alkane | M27: =Stoffdatenbank!$A$36 -> n-Alkane | N27: =Stoffdatenbank!$A$36 -> n-Alkane | O27: =Stoffdatenbank!$A$36 -> n-Alkane | P27: =Stoffdatenbank!$A$36 -> n-Alkane | Q27: =Stoffdatenbank!$A$36 -> n-Alkane | R27: =Stoffdatenbank!$A$36 -> n-Alkane | S27: =Stoffdatenbank!$A$36 -> n-Alkane | T27: =Stoffdatenbank!$A$36 -> n-Alkane | U27: =Stoffdatenbank!$A$36 -> n-Alkane | V27: =Stoffdatenbank!$A$36 -> n-Alkane
A28: =Stoffdatenbank!$A$37 -> n-Pentan | Q28: 2 | V28: =IF(SUM(B28:U28)>0,(Z28+AA28)*$K$3,"") -> 0.27021 | X28: =V28 -> 0.27021 | Y28: =IF(SUM($B28:$U28)>0,AVERAGE($B28:$U28),"") -> 2 | Z28: =IF(SUM(B28:U28)>0,Schadstoffbelastung!$I$6*Schadstoffbelastung!$I$9*Bodencharakterisierung!$D$8*Y28/1000/1000,"") -> 0.00066 | AA28: =IF(SUM(B28:U28)>0,Schadstoffbelastung!$I$6*Schadstoffbelastung!$I$9*Bodencharakterisierung!$D$11*Y28*Stoffdatenbank!$J37*Bodencharakterisierung!$D$9/1000/1000,"") -> 0.026361
A29: =Stoffdatenbank!$A$38 -> n-Hexan | Q29: 4 | V29: 1.24944 | X29: 1.24944 | Y29: =IF(SUM($B29:$U29)>0,AVERAGE($B29:$U29),"") -> 4 | Z29: =IF(SUM(B29:U29)>0,Schadstoffbelastung!$I$6*Schadstoffbelastung!$I$9*Bodencharakterisierung!$D$8*Y29/1000/1000,"") -> 0.00132 | AA29: =IF(SUM(B29:U29)>0,Schadstoffbelastung!$I$6*Schadstoffbelastung!$I$9*Bodencharakterisierung!$D$11*Y29*Stoffdatenbank!$J38*Bodencharakterisierung!$D$9/1000/1000,"") -> 0.123624
A30: =Stoffdatenbank!$A$39 -> n-Heptan | Q30: 44 | V30: 35.1417 | X30: 35.1417 | Y30: 44 | Z30: =IF(SUM(B30:U30)>0,Schadstoffbelastung!$I$6*Schadstoffbelastung!$I$9*Bodencharakterisierung!$D$8*Y30/1000/1000,"") -> 0.01452 | AA30: =IF(SUM(B30:U30)>0,Schadstoffbelastung!$I$6*Schadstoffbelastung!$I$9*Bodencharakterisierung!$D$11*Y30*Stoffdatenbank!$J39*Bodencharakterisierung!$D$9/1000/1000,"") -> 3.49965
A31: =Stoffdatenbank!$A$40 -> n-Octan | Q31: 6 | V31: 15.81822 | X31: 15.81822 | Y31: 6 | Z31: =IF(SUM(B31:U31)>0,Schadstoffbelastung!$I$6*Schadstoffbelastung!$I$9*Bodencharakterisierung!$D$8*Y31/1000/1000,"") -> 0.00198 | AA31: =IF(SUM(B31:U31)>0,Schadstoffbelastung!$I$6*Schadstoffbelastung!$I$9*Bodencharakterisierung!$D$11*Y31*Stoffdatenbank!$J40*Bodencharakterisierung!$D$9/1000/1000,"") -> 1.579842
A32: =Stoffdatenbank!$A$41 -> n-Nonan | Q32: 6 | V32: 25.05366 | X32: 25.05366 | Y32: 6 | Z32: =IF(SUM(B32:U32)>0,Schadstoffbelastung!$I$6*Schadstoffbelastung!$I$9*Bodencharakterisierung!$D$8*Y32/1000/1000,"") -> 0.00198 | AA32: =IF(SUM(B32:U32)>0,Schadstoffbelastung!$I$6*Schadstoffbelastung!$I$9*Bodencharakterisierung!$D$11*Y32*Stoffdatenbank!$J41*Bodencharakterisierung!$D$9/1000/1000,"") -> 2.503386
A33: =Stoffdatenbank!$A$42 -> n-Decan | Q33: 6 | V33: 198.89082 | X33: 198.89082 | Y33: 6 | Z33: =IF(SUM(B33:U33)>0,Schadstoffbelastung!$I$6*Schadstoffbelastung!$I$9*Bodencharakterisierung!$D$8*Y33/1000/1000,"") -> 0.00198 | AA33: =IF(SUM(B33:U33)>0,Schadstoffbelastung!$I$6*Schadstoffbelastung!$I$9*Bodencharakterisierung!$D$11*Y33*Stoffdatenbank!$J42*Bodencharakterisierung!$D$9/1000/1000,"") -> 19.887102
A34: =Stoffdatenbank!$A$36 -> n-Alkane | B34: =IF(SUM(B28:B33)>0,SUM(B28:B33),"") ->  | C34: =IF(SUM(C28:C33)>0,SUM(C28:C33),"") ->  | H34: =IF(SUM(H28:H33)>0,SUM(H28:H33),"") ->  | Q34: 68 | T34: =IF(SUM(T28:T33)>0,SUM(T28:T33),"") ->  | V34: =SUM(V28:V33) -> 276.42405
A35: Oxigenate
A36: MTBE (Methyl-tert-butylether) | Q36: 5 | T36: 10000 | V36: =IF(SUM(B36:U36)>0,(Z36+AA36)*$K$3,"") -> 24.84491625 | X36: =V36 -> 24.84491625 | Y36: =IF(SUM($B36:$U36)>0,AVERAGE($B36:$U36),"") -> 5002.5 | Z36: =IF(SUM(B36:U36)>0,Schadstoffbelastung!$I$6*Schadstoffbelastung!$I$9*Bodencharakterisierung!$D$8*Y36/1000/1000,"") -> 1.650825 | AA36: =IF(SUM(B36:U36)>0,Schadstoffbelastung!$I$6*Schadstoffbelastung!$I$9*Bodencharakterisierung!$D$11*Y36*Stoffdatenbank!$J44*Bodencharakterisierung!$D$9/1000/1000,"") -> 0.833666625
A37: ETBE (Ethyl-tert-butylether) | Q37: 55 | V37: =IF(SUM(B37:U37)>0,(Z37+AA37)*$K$3,"") -> 0.2564925 | X37: =V37 -> 0.2564925 | Y37: =IF(SUM($B37:$U37)>0,AVERAGE($B37:$U37),"") -> 55 | Z37: =IF(SUM(B37:U37)>0,Schadstoffbelastung!$I$6*Schadstoffbelastung!$I$9*Bodencharakterisierung!$D$8*Y37/1000/1000,"") -> 0.01815 | AA37: =IF(SUM(B37:U37)>0,Schadstoffbelastung!$I$6*Schadstoffbelastung!$I$9*Bodencharakterisierung!$D$11*Y37*Stoffdatenbank!$J45*Bodencharakterisierung!$D$9/1000/1000,"") -> 0.00749925
A38: TBA (tert-Butylalkohol) | Q38: 1 | V38: =IF(SUM(B38:U38)>0,(Z38+AA38)*$K$3,"") -> 0.0089055 | X38: =V38 -> 0.0089055 | Y38: =IF(SUM($B38:$U38)>0,AVERAGE($B38:$U38),"") -> 1 | Z38: =IF(SUM(B38:U38)>0,Schadstoffbelastung!$I$6*Schadstoffbelastung!$I$9*Bodencharakterisierung!$D$8*Y38/1000/1000,"") -> 0.00033 | AA38: =IF(SUM(B38:U38)>0,Schadstoffbelastung!$I$6*Schadstoffbelastung!$I$9*Bodencharakterisierung!$D$11*Y38*Stoffdatenbank!$J46*Bodencharakterisierung!$D$9/1000/1000,"") -> 0.00056055
A39: Oxigenate | B39: =IF(SUM(B36:B38)>0,SUM(B36:B38),"") ->  | Q39: 61 | T39: =IF(SUM(T36:T38)>0,SUM(T36:T38),"") -> 10000 | U39: =IF(SUM(U36:U38)>0,SUM(U36:U38),"") ->  | V39: =SUM(V36:V38) -> 25.11031425
A41: [mg/m²]
O42: [mg/m²]

Sheet Tabelle1 (hidden)
A2: AKW | B2: ='Schadstoffkonzentratonen Boden'!B83 ->  | C2: ='Schadstoffkonzentratonen Boden'!C83 ->  | D2: ='Schadstoffkonzentratonen Boden'!D83 ->  | E2: ='Schadstoffkonzentratonen Boden'!E83 ->  | F2: ='Schadstoffkonzentratonen Boden'!F83 ->  | G2: ='Schadstoffkonzentratonen Boden'!G83 ->  | H2: ='Schadstoffkonzentratonen Boden'!H83 ->  | I2: ='Schadstoffkonzentratonen Boden'!I83 ->  | J2: ='Schadstoffkonzentratonen Boden'!J83 ->  | K2: ='Schadstoffkonzentratonen Boden'!K83 -> 34 | L2: ='Schadstoffkonzentratonen Boden'!L83 -> 51 | M2: ='Schadstoffkonzentratonen Boden'!M83 -> 68 | N2: ='Schadstoffkonzentratonen Boden'!N83 -> 85 | O2: ='Schadstoffkonzentratonen Boden'!O83 -> 172.7 | P2: ='Schadstoffkonzentratonen Boden'!P83 -> 2566 | Q2: ='Schadstoffkonzentratonen Boden'!Q83 -> 1574 | R2: ='Schadstoffkonzentratonen Boden'!R83 -> 193.6 | S2: ='Schadstoffkonzentratonen Boden'!S83 -> 1946 | T2: ='Schadstoffkonzentratonen Boden'!T83 ->  | U2: ='Schadstoffkonzentratonen Boden'!U83 -> 
A3: AKW | B3: =_xlfn.RANK.EQ(B2,$B2:$U2) ->  | K3: 9 | L3: 8 | M3: 7 | N3: 6 | O3: 5 | P3: 1 | Q3: 3 | R3: 4 | S3: 2
A4: n-Alkane | B4: ='Schadstoffkonzentratonen Boden'!B$91 -> 1 | C4: ='Schadstoffkonzentratonen Boden'!C$91 -> 2 | D4: ='Schadstoffkonzentratonen Boden'!D$91 -> 3 | E4: ='Schadstoffkonzentratonen Boden'!E$91 -> 4 | F4: ='Schadstoffkonzentratonen Boden'!F$91 -> 5 | G4: ='Schadstoffkonzentratonen Boden'!G$91 -> 7 | H4: ='Schadstoffkonzentratonen Boden'!H$91 -> 7 | I4: ='Schadstoffkonzentratonen Boden'!I$91 -> 8 | J4: ='Schadstoffkonzentratonen Boden'!J$91 -> 9 | K4: ='Schadstoffkonzentratonen Boden'!K$91 -> 12 | L4: ='Schadstoffkonzentratonen Boden'!L$91 -> 18 | M4: ='Schadstoffkonzentratonen Boden'!M$91 -> 24 | N4: ='Schadstoffkonzentratonen Boden'!N$91 -> 30 | O4: ='Schadstoffkonzentratonen Boden'!O$91 -> 22 | P4: ='Schadstoffkonzentratonen Boden'!P$91 -> 33 | Q4: ='Schadstoffkonzentratonen Boden'!Q$91 -> 2 | R4: ='Schadstoffkonzentratonen Boden'!R$91 -> 34 | S4: ='Schadstoffkonzentratonen Boden'!S$91 -> 3 | T4: ='Schadstoffkonzentratonen Boden'!T$91 ->  | U4: ='Schadstoffkonzentratonen Boden'!U$91 -> 
A5: n-Alkane | B5: =_xlfn.RANK.EQ(B4,$B4:$U4) -> 18 | C5: =_xlfn.RANK.EQ(C4,$B4:$U4) -> 16 | D5: 14 | E5: 13 | F5: 12 | G5: 10 | H5: 10 | I5: 9 | J5: 8 | K5: 7 | L5: 6 | M5: 4 | N5: 3 | O5: 5 | P5: 2 | Q5: 16 | R5: 1 | S5: 14
A6: Oxygenate | B6: ='Schadstoffkonzentratonen Boden'!B$96 ->  | C6: ='Schadstoffkonzentratonen Boden'!C$96 ->  | D6: ='Schadstoffkonzentratonen Boden'!D$96 ->  | E6: ='Schadstoffkonzentratonen Boden'!E$96 ->  | F6: ='Schadstoffkonzentratonen Boden'!F$96 ->  | G6: ='Schadstoffkonzentratonen Boden'!G$96 ->  | H6: ='Schadstoffkonzentratonen Boden'!H$96 ->  | I6: ='Schadstoffkonzentratonen Boden'!I$96 ->  | J6: ='Schadstoffkonzentratonen Boden'!J$96 ->  | K6: ='Schadstoffkonzentratonen Boden'!K$96 -> 6 | L6: ='Schadstoffkonzentratonen Boden'!L$96 -> 9 | M6: ='Schadstoffkonzentratonen Boden'!M$96 -> 12 | N6: ='Schadstoffkonzentratonen Boden'!N$96 -> 15 | O6: ='Schadstoffkonzentratonen Boden'!O$96 ->  | P6: ='Schadstoffkonzentratonen Boden'!P$96 ->  | Q6: ='Schadstoffkonzentratonen Boden'!Q$96 ->  | R6: ='Schadstoffkonzentratonen Boden'!R$96 ->  | S6: ='Schadstoffkonzentratonen Boden'!S$96 ->  | T6: ='Schadstoffkonzentratonen Boden'!T$96 ->  | U6: ='Schadstoffkonzentratonen Boden'!U$96 -> 
A7: Oxygenate | B7: =_xlfn.RANK.EQ(B6,$B6:$U6) ->  | C7: =_xlfn.RANK.EQ(C6,$B6:$U6) ->  | K7: 4 | L7: 3 | M7: 2 | N7: 1

Sheet Grundwassercharakterisierung (hidden)
A2: Parameter | B2: Einheit | C2: Wert
A3: Mittlerer hydraulischer Gradient (I) | B3: % | C3: 0.1
A4: Grundwasserabstandsgeschwindigkeit (va) | B4: m/d | C4: =Bodencharakterisierung!D6*(Grundwassercharakterisierung!C3/100)/Bodencharakterisierung!D7*3600*24 -> 0.0864
A5: Redoxmilieu (charakteristische Mittelwerte)
A6: pH-Wert | B6: -- | C6: 7 | F6: 7
A7: Redoxspannung (korr.) | B7: mV | C7: 200 | F7: 200
A8: Temperatur | B8: °C | C8: 10 | F8: 10
A9: Gelöster Sauerstoff | B9: mg/L | C9: 3 | F9: 3
A10: Nitrat | B10: mg/L | C10: 20 | F10: 20
A11: Mangan (gelöst) | B11: mg/L | C11: 0 | F11: 0
A12: Eisen (gelöst) | B12: mg/L | C12: 0 | F12: 0
A13: Sulfat | B13: mg/L | C13: 200 | F13: 200
A14: Methan | B14: mg/L | C14: 0 | F14: 0
A15: DOC | B15: mg/L | C15: 2 | F15: 2

Sheet Schadstoffbelastung (hidden)
A2: Schadstoff | C2: MB + 2 s [mg/m² OS] | D2: Inventar [kg] | F2: Geometrie des Schadensherdes | H2: Einheit | I2: Wert | K2: Schadstoffstatistik | M2: Einheit | N2: AKW | O2: =Stoffdatenbank!A36 -> n-Alkane | P2: Oxigenate | S2: Mittl. Konz. (GW) [µg/L] | T2: Mittl. Konz. (GW) [µmol/L] | U2: Ci [µg/L] | V2: Grenzkonz. Boden [mg/kg] | W2: Mittlere Konz. Boden [mg/kg] | X2: Residualphase [mg/kg]
R3: TRUE
A4: Benzol | B4: B | D4: =IF($R$3,'Schadstoffkonzentratonen Boden'!V26,'Schadstoffkonzentrationen GW'!V8) -> 0.12614 | F4: Mittlere Länge (Schadensherd) | H4: m | I4: 10 | K4: Minimum (Einzelkonzentrationen) | M4: mg/kg OS | N4: =IF($R$3,'Schadstoffkonzentratonen Boden'!$W$83,"") -> 34 | O4: =IF($R$3,'Schadstoffkonzentratonen Boden'!$W$91,"") -> 1 | P4: =IF($R$3,'Schadstoffkonzentratonen Boden'!$W$96,"") -> 6 | S4: ='Schadstoffkonzentrationen GW'!Y8 -> 17.95 | T4: =S4/Stoffdatenbank!R19 -> 0.2301282051 | U4: =Stoffdatenbank!N19*1000*(Schadstoffbelastung!T4/(Schadstoffbelastung!T$21)) -> 854.7877451 | V4: =U4/1000*Bodencharakterisierung!$D$9*Stoffdatenbank!J19 -> 0.6838301961 | W4: =(D4*1000/$I$12) -> 0.08326072607 | X4: =IF(W4<V4,0,W4-V4) -> 0
A5: Toluol | B5: T | D5: =IF($R$3,'Schadstoffkonzentratonen Boden'!V27,'Schadstoffkonzentrationen GW'!V9) -> 0.12614 | F5: Mittlere Breite (Schadensherd) | H5: m | I5: 20 | K5: Maximum (Einzelkonzentrationen) | M5: mg/kg OS | N5: =IF($R$3,'Schadstoffkonzentratonen Boden'!$X$83,"") -> 2566 | O5: =IF($R$3,'Schadstoffkonzentratonen Boden'!$X$91,"") -> 34 | P5: =IF($R$3,'Schadstoffkonzentratonen Boden'!$X$96,"") -> 15 | S5: ='Schadstoffkonzentrationen GW'!Y9 -> 2481.005 | T5: =S5/Stoffdatenbank!R20 -> 26.96744565 | U5: =Stoffdatenbank!N20*1000*(Schadstoffbelastung!T5/(Schadstoffbelastung!T$21)) -> 29427.83595 | V5: =U5/1000*Bodencharakterisierung!$D$9*Stoffdatenbank!J20 -> 88.28350785 | W5: =(D5*1000/$I$12) -> 0.08326072607 | X5: =IF(W5<V5,0,W5-V5) -> 0
A6: Ethylbenzol | B6: ETBE | D6: =IF($R$3,'Schadstoffkonzentratonen Boden'!V28,'Schadstoffkonzentrationen GW'!V10) -> 0.12614 | F6: Fläche der Belastung | H6: m² | I6: =I4*I5 -> 200 | K6: Median (Einzelkonzentrationen) | M6: mg/kg OS | N6: =IF($R$3,'Schadstoffkonzentratonen Boden'!$Y$83,"") -> 172.7 | O6: =IF($R$3,'Schadstoffkonzentratonen Boden'!$Y$91,"") -> 7.5 | P6: =IF($R$3,'Schadstoffkonzentratonen Boden'!$Y$96,"") -> 10.5 | S6: ='Schadstoffkonzentrationen GW'!Y10 -> 26117.9 | T6: =S6/Stoffdatenbank!R21 -> 246.395283 | U6: =Stoffdatenbank!N21*1000*(Schadstoffbelastung!T6/(Schadstoffbelastung!T$21)) -> 87901.53951 | V6: =U6/1000*Bodencharakterisierung!$D$9*Stoffdatenbank!J21 -> 966.9169346 | W6: =(D6*1000/$I$12) -> 0.08326072607 | X6: 0
A7: o-Xylol | B7: oX | D7: =IF($R$3,'Schadstoffkonzentratonen Boden'!V29,'Schadstoffkonzentrationen GW'!V11) -> 0.12614 | F7: Oberkante der Belastung | H7: m u. GOK | I7: 5 | K7: Mittlere Konzentration (arithm.) (Einzelkonz.) | M7: mg/kg OS | N7: =IF($R$3,'Schadstoffkonzentratonen Boden'!$Z$83,"") -> 743.3666667 | O7: =IF($R$3,'Schadstoffkonzentratonen Boden'!$Z$91,"") -> 12.44444444 | P7: =IF($R$3,'Schadstoffkonzentratonen Boden'!$Z$96,"") -> 10.5 | S7: ='Schadstoffkonzentrationen GW'!Y11 -> 15577.85 | T7: =S7/Stoffdatenbank!R22 -> 146.9608491 | U7: =Stoffdatenbank!N22*1000*(Schadstoffbelastung!T7/(Schadstoffbelastung!T$21)) -> 55512.31362 | V7: =U7/1000*Bodencharakterisierung!$D$9*Stoffdatenbank!J22 -> 460.7522031 | W7: =(D7*1000/$I$12) -> 0.08326072607 | X7: 0
A8: m-Xylol | B8: mX | D8: =IF($R$3,'Schadstoffkonzentratonen Boden'!V30,'Schadstoffkonzentrationen GW'!V12) -> 0.12614 | F8: Unterkante der Belastung | H8: m u. GOK | I8: 10 | K8: Standardabweichung (Einzelkonzentrationen) | M8: mg/kg OS | N8: =IF($R$3,'Schadstoffkonzentratonen Boden'!$AA$83,"") -> 997.3912372 | O8: =IF($R$3,'Schadstoffkonzentratonen Boden'!$AA$91,"") -> 11.36673279 | P8: =IF($R$3,'Schadstoffkonzentratonen Boden'!$AA$96,"") -> 3.872983346 | S8: ='Schadstoffkonzentrationen GW'!Y12 -> 2085.735 | T8: =S8/Stoffdatenbank!R23 -> 19.67674528 | U8: =Stoffdatenbank!N23*1000*(Schadstoffbelastung!T8/(Schadstoffbelastung!T$21)) -> 7184.849617 | V8: =U8/1000*Bodencharakterisierung!$D$9*Stoffdatenbank!J23 -> 70.41152624 | W8: 0.08326072607 | X8: 0
A9: p-Xylol | B9: pX | D9: =IF($R$3,'Schadstoffkonzentratonen Boden'!V31,'Schadstoffkonzentrationen GW'!V13) -> 0.12614 | F9: Mittlere Mächtigkeit (Schadensherd) | H9: m | I9: =I8-I7 -> 5 | K9: MW + 2 s (Einzelkonzentrationen) | M9: mg/kg OS | N9: =IF($R$3,'Schadstoffkonzentratonen Boden'!$AB$83,"") -> 2738.149141 | O9: =IF($R$3,'Schadstoffkonzentratonen Boden'!$AB$91,"") -> 35.17791003 | P9: =IF($R$3,'Schadstoffkonzentratonen Boden'!$AB$96,"") -> 18.24596669 | S9: ='Schadstoffkonzentrationen GW'!Y13 -> 219.02 | T9: =S9/Stoffdatenbank!R24 -> 2.066226415 | U9: =Stoffdatenbank!N24*1000*(Schadstoffbelastung!T9/(Schadstoffbelastung!T$21)) -> 867.2076006 | V9: =U9/1000*Bodencharakterisierung!$D$9*Stoffdatenbank!J24 -> 7.631426886 | W9: 0.08326072607 | X9: 0
A10: n-Propylbenzol | B10: nPB | D10: =IF($R$3,'Schadstoffkonzentratonen Boden'!V32,'Schadstoffkonzentrationen GW'!V14) -> 0.12614 | F10: Bodenlagerungsdichte | H10: kg/L | I10: =Bodencharakterisierung!D11 -> 1.515 | K10: Schadstoffinventar (mittelwertbezogen) | M10: kg | N10: =IF($R$3,'Schadstoffkonzentratonen Boden'!$AC$83,"") -> 6473.689519 | O10: =IF($R$3,'Schadstoffkonzentratonen Boden'!$AC$91,"") -> 81.72255285 | P10: =IF($R$3,'Schadstoffkonzentratonen Boden'!$AC$96,"") -> 40.36491673 | S10: ='Schadstoffkonzentrationen GW'!Y14 -> 95.15 | T10: =S10/Stoffdatenbank!R25 -> 0.7929166667 | U10: =Stoffdatenbank!N25*1000*(Schadstoffbelastung!T10/(Schadstoffbelastung!T$21)) -> 99.83756209 | V10: =U10/1000*Bodencharakterisierung!$D$9*Stoffdatenbank!J25 -> 0.9784081084 | W10: 0.08326072607 | X10: 0
A11: Isopropylbenzol | B11: iPB | D11: =IF($R$3,'Schadstoffkonzentratonen Boden'!V33,'Schadstoffkonzentrationen GW'!V15) -> 0.12614 | F11: Volumen kontaminierter Boden | H11: m³ | I11: =I9*I6 -> 1000 | K11: Schadstoffinventar (flächengewichtet) | M11: kg | N11: =D21 -> 2.09202 | O11: =D28 -> 0.12337 | P11: =D32 -> 0.30061 | S11: ='Schadstoffkonzentrationen GW'!Y15 -> 369.825 | T11: =S11/Stoffdatenbank!R26 -> 3.081875 | U11: =Stoffdatenbank!N26*1000*(Schadstoffbelastung!T11/(Schadstoffbelastung!T$21)) -> 323.3703486 | V11: =U11/1000*Bodencharakterisierung!$D$9*Stoffdatenbank!J26 -> 3.039681276 | W11: 0.08326072607 | X11: 0
A12: o-Ethyltoluol | B12: oET | D12: =IF($R$3,'Schadstoffkonzentratonen Boden'!V34,'Schadstoffkonzentrationen GW'!V16) -> 0.12614 | H12: t | I12: =I11*I10 -> 1515 | K12: Residualsättigung | M12: mg/kg | N12: =X21 -> 0.07973998038 | O12: =X28 -> 0 | P12: =X31 -> 0 | S12: ='Schadstoffkonzentrationen GW'!Y16 -> 1037.99 | T12: =S12/Stoffdatenbank!R27 -> 8.649916667 | U12: =Stoffdatenbank!N27*1000*(Schadstoffbelastung!T12/(Schadstoffbelastung!T$21)) -> 1688.14615 | V12: =U12/1000*Bodencharakterisierung!$D$9*Stoffdatenbank!J27 -> 13.33635458 | W12: 0.08326072607 | X12: =IF(W12<V12,0,W12-V12) -> 0
A13: m-Ethyltoluol | B13: oET | D13: =IF($R$3,'Schadstoffkonzentratonen Boden'!V35,'Schadstoffkonzentrationen GW'!V17) -> 0.12614 | F13: Grundwasserflurabstand | H13: m u. GOK | I13: 5 | S13: ='Schadstoffkonzentrationen GW'!Y17 -> 3 | T13: =S13/Stoffdatenbank!R28 -> 0.025 | U13: =Stoffdatenbank!N28*1000*(Schadstoffbelastung!T13/(Schadstoffbelastung!T$21)) -> 5.088935114 | V13: =U13/1000*Bodencharakterisierung!$D$9*Stoffdatenbank!J28 -> 0.03867590687 | W13: 0.08326072607 | X13: 0.0445848192
A14: p-Ethyltoluol | B14: pET | D14: =IF($R$3,'Schadstoffkonzentratonen Boden'!V36,'Schadstoffkonzentrationen GW'!V18) -> 0.12614 | S14: ='Schadstoffkonzentrationen GW'!Y18 -> 5.43 | T14: =S14/Stoffdatenbank!R29 -> 0.04525 | U14: =Stoffdatenbank!N29*1000*(Schadstoffbelastung!T14/(Schadstoffbelastung!T$21)) -> 9.021055597 | V14: =U14/1000*Bodencharakterisierung!$D$9*Stoffdatenbank!J29 -> 0.08118950037 | W14: 0.08326072607 | X14: 0.002071225702
A15: 1,2-Diethylbenzol | B15: 12DEB | D15: =IF($R$3,'Schadstoffkonzentratonen Boden'!V37,'Schadstoffkonzentrationen GW'!V19) -> 0.12614 | S15: ='Schadstoffkonzentrationen GW'!Y19 -> 26.7 | T15: =S15/Stoffdatenbank!R30 -> 0.1992537313 | U15: =Stoffdatenbank!N30*1000*(Schadstoffbelastung!T15/(Schadstoffbelastung!T$21)) -> 10.03535812 | V15: =U15/1000*Bodencharakterisierung!$D$9*Stoffdatenbank!J30 -> 0.0501767906 | W15: 0.08326072607 | X15: 0.03308393547
A16: 1,3-Diethylbenzol | B16: 13DEB | D16: =IF($R$3,'Schadstoffkonzentratonen Boden'!V38,'Schadstoffkonzentrationen GW'!V20) -> 0.12614 | S16: ='Schadstoffkonzentrationen GW'!Y20 -> 86.495 | T16: =S16/Stoffdatenbank!R31 -> 0.6454850746 | U16: =Stoffdatenbank!N31*1000*(Schadstoffbelastung!T16/(Schadstoffbelastung!T$21)) -> 36.57338345 | V16: =U16/1000*Bodencharakterisierung!$D$9*Stoffdatenbank!J31 -> 0.1536082105 | W16: 0.08326072607 | X16: 0
A17: 1,4-Diethylbenzol | B17: 14DEB | D17: =IF($R$3,'Schadstoffkonzentratonen Boden'!V39,'Schadstoffkonzentrationen GW'!V21) -> 0.12614 | S17: ='Schadstoffkonzentrationen GW'!Y21 -> 521.1 | T17: =S17/Stoffdatenbank!R32 -> 3.88880597 | U17: =Stoffdatenbank!N32*1000*(Schadstoffbelastung!T17/(Schadstoffbelastung!T$21)) -> 204.0193944 | V17: =U17/1000*Bodencharakterisierung!$D$9*Stoffdatenbank!J32 -> 0.9384892141 | W17: 0.08326072607 | X17: 0
A18: 1,2,3-Trimethylbenzol | B18: 123TMB | D18: =IF($R$3,'Schadstoffkonzentratonen Boden'!V40,'Schadstoffkonzentrationen GW'!V22) -> 0.12614 | S18: ='Schadstoffkonzentrationen GW'!Y22 -> 1255.345 | T18: =S18/Stoffdatenbank!R33 -> 10.46120833 | U18: =Stoffdatenbank!N33*1000*(Schadstoffbelastung!T18/(Schadstoffbelastung!T$21)) -> 1646.48692 | V18: =U18/1000*Bodencharakterisierung!$D$9*Stoffdatenbank!J33 -> 10.70216498 | W18: 0.08326072607 | X18: 0
A19: 1,2,4-Trimethylbenzol | B19: 124TMB | D19: =IF($R$3,'Schadstoffkonzentratonen Boden'!V41,'Schadstoffkonzentrationen GW'!V23) -> 0.13746 | S19: ='Schadstoffkonzentrationen GW'!Y23 -> 386.135 | T19: =S19/Stoffdatenbank!R34 -> 3.217791667 | U19: =Stoffdatenbank!N34*1000*(Schadstoffbelastung!T19/(Schadstoffbelastung!T$21)) -> 405.15793 | V19: =U19/1000*Bodencharakterisierung!$D$9*Stoffdatenbank!J34 -> 2.633526545 | W19: 0.09073267327 | X19: 0
A20: 1,3,5-Trimethylbenzol | B20: 135TMB | D20: =IF($R$3,'Schadstoffkonzentratonen Boden'!V42,'Schadstoffkonzentrationen GW'!V24) -> 0.06246 | S20: ='Schadstoffkonzentrationen GW'!Y24 -> 386.385 | T20: =S20/Stoffdatenbank!R35 -> 3.219875 | U20: =Stoffdatenbank!N35*1000*(Schadstoffbelastung!T20/(Schadstoffbelastung!T$21)) -> 135.1400821 | V20: =U20/1000*Bodencharakterisierung!$D$9*Stoffdatenbank!J35 -> 0.9054385499 | W20: 0.04122772277 | X20: 0
A21: AKW | D21: =SUM(D4:D20) -> 2.09202 | S21: =SUM(S4:S20) -> 50673.015 | T21: =SUM(T4:T20) -> 476.5240557 | U21: =SUM(U4:U20) -> 186311.4112 | V21: 1627.537143 | W21: =SUM(W4:W20) -> 1.380871287 | X21: =SUM(X4:X20) -> 0.07973998038
A22: =Stoffdatenbank!$A$37 -> n-Pentan | B22: nC5 | D22: =IF($R$3,'Schadstoffkonzentratonen Boden'!V46,'Schadstoffkonzentrationen GW'!V28) -> 0.04003 | G22: Berechnung der Schadstoffinventare mit Daten aus | S22: ='Schadstoffkonzentrationen GW'!Y28 -> 2 | T22: =S22/Stoffdatenbank!R37 -> 0.02777777778 | U22: =Stoffdatenbank!N37*1000*(Schadstoffbelastung!T22/(Schadstoffbelastung!T$28)) -> 1693.639125 | V22: =U22/1000*Bodencharakterisierung!$D$9*Stoffdatenbank!J37 -> 14.73466039 | W22: =(D22/$I$12)*1000 -> 0.02642244224 | X22: =IF(W22<V22,0,W22-V22) -> 0
A23: =Stoffdatenbank!$A$38 -> n-Hexan | B23: nC6 | D23: =IF($R$3,'Schadstoffkonzentratonen Boden'!V47,'Schadstoffkonzentrationen GW'!V29) -> 0.04507 | S23: ='Schadstoffkonzentrationen GW'!Y29 -> 4 | T23: =S23/Stoffdatenbank!R38 -> 0.04651162791 | U23: =Stoffdatenbank!N38*1000*(Schadstoffbelastung!T23/(Schadstoffbelastung!T$28)) -> 708.9652153 | V23: =U23/1000*Bodencharakterisierung!$D$9*Stoffdatenbank!J38 -> 14.46289039 | W23: =(D23/$I$12)*1000 -> 0.02974917492 | X23: 0
A24: =Stoffdatenbank!$A$39 -> n-Heptan | B24: nC7 | D24: =IF($R$3,'Schadstoffkonzentratonen Boden'!V48,'Schadstoffkonzentrationen GW'!V30) -> 0.00337 | S24: ='Schadstoffkonzentrationen GW'!Y30 -> 44 | T24: =S24/Stoffdatenbank!R39 -> 0.44 | U24: =Stoffdatenbank!N39*1000*(Schadstoffbelastung!T24/(Schadstoffbelastung!T$28)) -> 1475.498406 | V24: =U24/1000*Bodencharakterisierung!$D$9*Stoffdatenbank!J39 -> 77.46366631 | W24: 0.002224422442 | X24: 0
A25: =Stoffdatenbank!$A$40 -> n-Octan | B25: nC8 | D25: =IF($R$3,'Schadstoffkonzentratonen Boden'!V49,'Schadstoffkonzentrationen GW'!V31) -> 0.03438 | S25: ='Schadstoffkonzentrationen GW'!Y31 -> 6 | T25: =S25/Stoffdatenbank!R40 -> 0.05263157895 | U25: =Stoffdatenbank!N40*1000*(Schadstoffbelastung!T25/(Schadstoffbelastung!T$28)) -> 56.15750784 | V25: =U25/1000*Bodencharakterisierung!$D$9*Stoffdatenbank!J40 -> 9.760174863 | W25: 0.02269306931 | X25: 0
A26: =Stoffdatenbank!$A$41 -> n-Nonan | B26: nC9 | D26: =IF($R$3,'Schadstoffkonzentratonen Boden'!V50,'Schadstoffkonzentrationen GW'!V32) -> 0.00025 | S26: ='Schadstoffkonzentrationen GW'!Y32 -> 6 | T26: =S26/Stoffdatenbank!R41 -> 0.046875 | U26: =Stoffdatenbank!N41*1000*(Schadstoffbelastung!T26/(Schadstoffbelastung!T$28)) -> 8.574048072 | V26: =U26/1000*Bodencharakterisierung!$D$9*Stoffdatenbank!J41 -> 2.361292839 | W26: 0.0001650165017 | X26: 0
A27: =Stoffdatenbank!$A$42 -> n-Decan | B27: nC10 | D27: =IF($R$3,'Schadstoffkonzentratonen Boden'!V51,'Schadstoffkonzentrationen GW'!V33) -> 0.00027 | S27: ='Schadstoffkonzentrationen GW'!Y33 -> 6 | T27: =S27/Stoffdatenbank!R42 -> 0.04225352113 | U27: =Stoffdatenbank!N42*1000*(Schadstoffbelastung!T27/(Schadstoffbelastung!T$28)) -> 3.220299745 | V27: =U27/1000*Bodencharakterisierung!$D$9*Stoffdatenbank!J42 -> 7.045371783 | W27: 0.0001782178218 | X27: 0
A28: =Stoffdatenbank!$A$36 -> n-Alkane | D28: =SUM(D22:D27) -> 0.12337 | S28: ='Schadstoffkonzentrationen GW'!Y34 -> 0 | T28: =SUM(T22:T27) -> 0.6560495058 | U28: =SUM(U22:U27) -> 3946.054602 | V28: 125.8280566 | W28: =SUM(W22:W27) -> 0.08143234323 | X28: =SUM(X22:X27) -> 0
A29: MTBE (Methyl-tert-butylether) | D29: =IF($R$3,'Schadstoffkonzentratonen Boden'!V54,'Schadstoffkonzentrationen GW'!V36) -> 0.30007 | S29: ='Schadstoffkonzentrationen GW'!Y36 -> 5002.5 | T29: =S29/Stoffdatenbank!R44 -> 56.7511458 | U29: =Stoffdatenbank!N44*1000*(Schadstoffbelastung!T29/Schadstoffbelastung!T$32) -> 50765414 | V29: =U29/1000*Bodencharakterisierung!$D$9*Stoffdatenbank!J44 -> 5584.195541 | W29: =(D29/$I$12)*1000 -> 0.1980660066 | X29: =IF(W29<V29,0,W29-V29) -> 0
A30: ETBE (Ethyl-tert-butylether) | D30: =IF($R$3,'Schadstoffkonzentratonen Boden'!V55,'Schadstoffkonzentrationen GW'!V37) -> 0.00047 | S30: ='Schadstoffkonzentrationen GW'!Y37 -> 55 | T30: =S30/Stoffdatenbank!R45 -> 0.5382931995 | U30: =Stoffdatenbank!N45*1000*(Schadstoffbelastung!T30/Schadstoffbelastung!T$21) -> 13555.49277 | V30: =U30/1000*Bodencharakterisierung!$D$9*Stoffdatenbank!J45 -> 1.21999435 | W30: =(D30/$I$12)*1000 -> 0.0003102310231 | X30: =IF(W30<V30,0,W30-V30) -> 0
A31: TBA (tert-Butylalkohol) | D31: =IF($R$3,'Schadstoffkonzentratonen Boden'!V56,'Schadstoffkonzentrationen GW'!V38) -> 7e-05 | S31: ='Schadstoffkonzentrationen GW'!Y38 -> 1 | T31: =S31/Stoffdatenbank!R46 -> 0.01349134395 | U31: =Stoffdatenbank!N46*1000*(Schadstoffbelastung!T31/Schadstoffbelastung!T$21) -> 1415.599464 | V31: =U31/1000*Bodencharakterisierung!$D$9*Stoffdatenbank!J46 -> 0.5237718015 | W31: =(D31/$I$12)*1000 -> 4.620462046e-05 | X31: =IF(W31<V31,0,W31-V31) -> 0
A32: Oxigenate | D32: =SUM(D29:D31) -> 0.30061 | S32: =SUM(S29:S31) -> 5058.5 | T32: =SUM(T29:T31) -> 57.30293034 | U32: =SUM(U26:U31) -> 50784342.95 | V32: =SUM(V29:V31) -> 5585.939307 | W32: =SUM(W29:W31) -> 0.1984224422 | X32: =SUM(X29:X31) -> 0

Sheet Heterogenität (hidden)
A3: Heterogenität (Gini-Koeffizient) | C3: Hoch | D3: 0.7
A4: Korrekturfaktor | D4: =1/(1-(1-2.45068336614863*(Schadstoffbelastung!$I$4*Schadstoffbelastung!$I$5)^-0.457209937280527)*$D$3) -> 2.211553449
F6: Sondierung | G6: Gini-Koeffizient

Sheet Sanierungsdesign (hidden)
A2: Parameter | B2: Einheit | C2: Wert | J2: Default
A3: Sanierungszielwert
A4: LCKW | B4: µg/L | C4: 100 | J4: 100
